Cogmind - Beta 16.1 @@@ ROGUE MODE // 2026.02.25 @ 15:52:39 Player: Wulphy Result: Destroyed by Executioner with Helical Railgun Performance ------------- Evolutions (7) 3500 Regions Visited (33) 6600 Robots Destroyed (584) 2920 Value Destroyed (28464) 28464 Prototype IDs (57) 1140 Alien Tech Used (4) 800 Bonus (20189) 20189 TOTAL SCORE: 63613 Bonus ------- Triggered High Security 500 High Alert Combat Kills 7640 Follower Combat Kills 6106 Entered Garrisons 1000 Network Hubs Disabled 200 Acquired ECA 300 Met Zhirov 300 Met Warlord at Base 500 MAIN.C Attacked Warlord 500 Warlord Defense Kills 620 Met R17 at Cetus 500 Read Decrypted Archives 300 Met R17 at Research 2000 Friendly Fire -277 Cogmind --------- Core Integrity 0/1300 Matter 42/300 Energy 98/100 System Corruption 16% Temperature Cool (42) Movement Core (50) Location -3/Quarantine Parts ------- > --- POWER (2) -------- (None) > --- PROPULSION (4) --- Centrium Heavy Treads > --- UTILITY (9) ------ Experimental Optical Array > --- WEAPON (6) ------- (None) > --- INVENTORY (5) ---- Improved Matter Compressor Advanced Terrain Scanner Seismic Detector Phase Redirector Mini Smartbomb Launcher Peak State ------------ > --- POWER ------------ Light Antimatter Reactor Quantum Reactor > --- PROPULSION ------- Centrium Heavy Treads Centrium Heavy Treads > --- UTILITY ---------- Advanced Cooling System Huge Storage Unit Experimental Optical Array Quantum Capacitor Hardened Heavy Armor Plating Phase Redirector Advanced Hacking Suite > --- WEAPON ----------- Compact HERF Cannon 1B-0RG's Assimilator > --- INVENTORY -------- Light Antimatter Reactor Armored Heavy Treads Centrium Heavy Treads Energy Well Advanced Matter Compressor Experimental Matter Compressor Advanced Terrain Scanner Seismic Detector Advanced Particle Charger Quantum Capacitor Centrium Medium Armor Plating Advanced Point Defense System Transdimensional Reconstructor High-powered Transdimensional Reconstructor High-powered Transdimensional Reconstructor Vortex Rifle Compact HERF Cannon Vortex Cannon Vortex Cannon Mini Smartbomb Launcher Micro-nuke Launcher Molecular Scythe [Rating: 202] Favorites ----------- Power Light Antimatter Reactor Engine Reinforced Deuterium Engine Power Core Light Nuclear Core Reactor Light Antimatter Reactor Propulsion Armored Huge Wheel Treads Heavy Treads Leg Arachnoskeleton Wheel Armored Huge Wheel Hover Unit Antigrav System Flight Unit Field Propulsion Drive Utility Cargo Storage Unit Device Advanced Heat Sink Storage Cargo Storage Unit Processor Experimental Optical Array Hackware Advanced Hacking Suite Protection Hardened Heavy Armor Plating Artifact Phase Redirector Weapon Gatling Laser Energy Gun Gatling Laser Energy Cannon Advanced Plasma Cannon Ballistic Gun Heavy Battle Rifle Ballistic Cannon Enhanced Gauss Cannon Launcher Mini Smartbomb Launcher Special Weapon Enhanced Flamer Impact Weapon Great Maul Slashing Weapon Makeshift Axe Piercing Weapon Makeshift Spear Special Melee Weapon 1B-0RG's Assimilator Build | -11 -10 -10 -8 -8 -8 -8 -8 -7 -7 -7 -7 -7 -7 -6 -6 -6 -6 -5 -5 -5 -5 -5 -5 -5 -4 -4 -4 -4 -4 -4 -3 -3 -3 ------- Run | Yrd Mat Sub Mat Gar Mat Gar Mat Fac Was Fac Gar Fac Gar Fac Low Low Zio Pro Fac Was Fac Upp Upp War Pro Fac Ext Cet Arc Hub Res Gar Qua Slots Evolved 14 | . . . 4 . . . . 2 . . . . . 2 . . . . 2 . . . . . . 2 . . . . 2 . . Power 1 | . . . . . . . . . . . . . . . . . . . 1 . . . . . . . . . . . . . . Propulsion 2 | . . . 1 . . . . 1 . . . . . . . . . . . . . . . . . . . . . . . . . Utility 7 | . . . 2 . . . . 1 . . . . . 1 . . . . 1 . . . . . . . . . . . 2 . . Weapon 4 | . . . 1 . . . . . . . . . . 1 . . . . . . . . . . . 2 . . . . . . . Parts Attached 404 | 8 8 14 19 13 14 10 8 5 1 13 11 29 15 27 5 5 2 1 52 16 3 . 2 14 2 23 35 9 1 9 12 7 11 Power 37 | 1 2 1 3 1 2 . 1 . . 1 1 3 1 4 . . . . 4 3 . . . 1 . . . . . 2 2 3 1 Engine 14 | 1 2 . 2 . 2 . 1 . . . . 1 . 3 . . . . 2 . . . . . . . . . . . . . . Core 9 | . . 1 1 1 . . . . . 1 . 2 1 . . . . . 2 . . . . . . . . . . . . . . Reactor 14 | . . . . . . . . . . . 1 . . 1 . . . . . 3 . . . 1 . . . . . 2 2 3 1 Propulsion 65 | 2 . 5 8 4 3 1 5 2 . 2 . 2 2 3 1 1 . . 7 2 . . 1 . . 4 4 4 . . 1 . 1 Treads 28 | 2 . 3 3 3 2 1 2 . . . . . . . . . . . . 2 . . 1 . . 1 3 3 . . 1 . 1 Leg 2 | . . . 1 . . . . . . . . . . 1 . . . . . . . . . . . . . . . . . . . Wheel 31 | . . 2 4 1 1 . 3 2 . 2 . 2 2 2 1 1 . . 3 . . . . . . 3 1 1 . . . . . Hover 3 | . . . . . . . . . . . . . . . . . . . 3 . . . . . . . . . . . . . . Flight 1 | . . . . . . . . . . . . . . . . . . . 1 . . . . . . . . . . . . . . Utility 168 | 2 2 4 5 4 2 7 1 1 . 4 4 16 8 8 2 3 2 1 28 5 3 . 1 8 . 9 19 1 1 2 6 2 7 Device 87 | 1 . 3 3 . . 3 1 . . 2 1 6 7 3 2 1 . 1 14 3 2 . . 3 . 8 13 1 . 1 4 . 4 Storage 12 | 1 1 1 . . . . . 1 . . 1 1 . . . . . . 2 . . . . 1 . 1 . . . . 1 1 . Processor 22 | . 1 . 1 . . 2 . . . . . 2 . 2 . . 1 . 5 1 1 . . 2 . . 3 . . . 1 . . Hackware 12 | . . . . 1 1 1 . . . 1 . 2 . . . . . . 5 . . . . . . . . . . 1 . . . Protection 34 | . . . 1 3 1 1 . . . 1 2 5 1 3 . 2 1 . 2 1 . . 1 2 . . 3 . 1 . . 1 2 Artifact 1 | . . . . . . . . . . . . . . . . . . . . . . . . . . . . . . . . . 1 Weapon 134 | 3 4 4 3 4 7 2 1 2 1 6 6 8 4 12 2 1 . . 13 6 . . . 5 2 10 12 4 . 5 3 2 2 Energy Gun 56 | 2 3 1 . . 3 1 1 2 1 5 4 2 2 7 . 1 . . 4 . . . . 2 1 2 9 1 . 2 . . . Energy Cannon 14 | . . 1 . . . . . . . . 1 . . 1 . . . . 4 . . . . 1 . 1 . . . 1 2 1 1 Ballistic Gun 30 | 1 . 1 3 4 2 . . . . 1 . . . . . . . . 2 4 . . . . 1 5 3 3 . . . . . Ballistic Cannon 9 | . . . . . . . . . . . . 4 2 1 . . . . 1 . . . . 1 . . . . . . . . . Launcher 11 | . . . . . 2 1 . . . . . 2 . 1 . . . . 2 1 . . . . . 1 . . . . . . 1 Special Weapon 4 | . 1 . . . . . . . . . . . . . 2 . . . . 1 . . . . . . . . . . . . . Impact Weapon 3 | . . . . . . . . . . . 1 . . . . . . . . . . . . . . 1 . . . . . 1 . Slashing Weapon 3 | . . 1 . . . . . . . . . . . 1 . . . . . . . . . . . . . . . . 1 . . Piercing Weapon 2 | . . . . . . . . . . . . . . . . . . . . . . . . 1 . . . . . 1 . . . Special Melee Weapon 2 | . . . . . . . . . . . . . . 1 . . . . . . . . . . . . . . . 1 . . . Unidentified Prototypes 40 | . 1 . . . 5 . 1 . . 4 . 2 1 5 . . . . . 1 . . . 9 . . . 3 . 1 1 2 4 Corrupted Parts 2 | . . . . . . . . . . . . . . . . . . . . . . . . . . . 2 . . . . . . System Corruption 11 | . . . . . . . . . . . . . . . . . . . . . . . . . . . 11 . . . . . . Parts Lost 111 | . 1 3 2 5 . 5 1 . . 1 5 5 9 9 . 4 . . 27 . . . 1 . 1 3 6 . 2 6 . 2 13 Power 12 | . 1 . 1 . . . . . . . . 1 2 . . . . . 3 . . . . . . . . . . 1 . 1 2 Propulsion 25 | . . 1 1 2 . . . . . 1 . 1 2 2 . 1 . . 7 . . . 1 . . 1 2 . . . . . 3 Utility 35 | . . 1 . 1 . 2 . . . . 2 2 4 3 . . . . 9 . . . . . . 2 1 . 2 1 . . 5 Weapon 39 | . . 1 . 2 . 3 1 . . . 3 1 1 4 . 3 . . 8 . . . . . 1 . 3 . . 4 . 1 3 Highest Loss Streak 12 | . 1 1 1 2 . 2 1 . . 1 3 1 4 4 . 2 . . 12 . . . 1 . 1 2 5 . 2 2 . 1 11 To Critical Strikes 2 | . . 1 . 1 . . . . . . . . . . . . . . . . . . . . . . . . . . . . . Average Backups 17 | 3 10 18 15 19 18 17 15 18 22 22 22 22 21 23 23 23 24 25 18 4 5 5 4 5 6 11 14 14 13 14 15 20 20 Power . | . 1 . . . . . . . . . . . . . 1 1 1 1 . . . . . . . . . 1 1 1 1 1 1 Propulsion 1 | 1 3 6 3 1 1 2 3 2 3 2 2 2 2 1 1 . . . . . 1 1 . . 1 1 1 1 2 2 2 2 1 Utility 7 | . 2 4 5 8 8 8 9 10 12 12 11 11 9 10 11 12 13 14 10 1 1 1 1 . 1 3 4 5 4 4 5 9 9 Weapon 6 | 1 3 6 5 7 5 3 2 4 6 6 8 8 8 9 7 6 7 8 5 1 2 2 2 3 3 4 6 5 5 6 6 7 6 Tool/Special . | . . . . . . . . . . . . . . . . . . . . . . . . . . . . . . . . . . Unused Backups 104 | . 6 10 8 3 6 5 . . . 7 3 6 3 7 1 2 . . 10 1 1 . . 1 . 8 2 3 . 2 3 2 4 Power 6 | . 2 . . . . . . . . . . . . . 1 . . . . . . . . . . 1 . 1 . . . . 1 Propulsion 12 | . . 3 2 1 2 1 . . . 2 . . . . . . . . . . . . . . . . 1 . . . . . . Utility 38 | . . 1 1 . 1 2 . . . 1 2 4 1 4 . 1 . . 6 1 1 . . . . 3 1 2 . 2 2 . 2 Weapon 44 | . 4 6 5 2 2 . . . . 4 1 2 2 2 . 1 . . 4 . . . . 1 . 4 . . . . 1 2 1 Tool/Special 4 | . . . . . 1 2 . . . . . . . 1 . . . . . . . . . . . . . . . . . . . Average Slot Usage (%) 77 | . 97 99 88 79 82 80 78 77 64 72 73 74 74 78 86 85 86 86 67 59 69 69 67 70 75 78 83 77 76 69 65 60 59 Engine 2 | . 13 11 3 . . 7 7 6 6 3 . . 3 1 6 6 6 6 3 . . . . . . . . . . . . . . Core 1 | . . 2 5 7 6 . . . . 2 4 2 3 . . . . . 4 . . . . . . . . . . . . . . Reactor 3 | . . . . . . . . . . . 2 4 . 4 . . . . . 8 11 11 11 9 5 5 5 5 5 8 9 8 8 Treads 6 | . 27 17 8 9 7 7 7 6 . 1 . . . . . . . . . 7 11 11 10 11 11 7 5 6 10 10 9 9 8 Wheel 9 | . . 10 17 11 13 14 14 18 16 19 15 15 15 13 20 20 20 20 8 1 . . . . . 3 7 3 . . . . . Device 12 | . 2 14 11 2 2 7 7 8 6 6 12 12 14 19 20 19 20 20 10 4 6 11 9 6 16 19 20 15 14 11 18 9 10 Storage 6 | . 14 14 8 7 7 7 7 6 6 6 7 7 7 6 6 6 6 6 4 5 5 5 5 6 5 5 5 5 5 5 4 8 6 Processor 2 | . 10 . . . . 4 . . . . . . . . . . . . 1 6 2 . . 3 11 5 5 5 5 5 4 4 4 Hackware 1 | . . . . 4 4 . . . . . . 2 . . . . . . 9 5 1 . . . . . . . . 4 4 4 2 Protection 5 | . . . 6 8 11 4 7 6 6 6 7 5 7 5 6 6 6 6 1 3 5 4 5 9 5 5 3 5 4 5 3 4 4 Energy Gun 10 | . 16 7 8 . . 14 20 18 11 21 18 17 . 11 21 20 20 19 12 . . . . 2 5 6 14 13 10 3 . . . Energy Cannon 1 | . . 6 2 . . . . . . . . 1 . . . 4 6 5 3 . . . . . . 1 . . . 1 2 3 2 Ballistic Gun 5 | . 9 7 13 18 20 5 . . . . . . . . . . . . . 8 22 22 22 11 4 11 15 17 21 7 . . . Ballistic Cannon 1 | . . . . . . . . . . . . 3 20 9 . . . . . . . . . 1 5 4 . . . . . . . Peak Build Rating 202 | 7 15 24 53 61 63 67 68 78 76 78 69 71 71 80 70 75 73 74 92 97 95 99 98 136 136 144 130 153 153 185 194 197 202 Average Rating 87 | 5 9 16 34 57 60 63 66 69 72 63 64 65 67 72 68 70 71 73 71 75 93 94 91 106 132 134 120 133 150 166 187 194 190 On Entrance 85 | . 7 12 24 53 61 61 65 64 78 73 62 69 71 65 69 68 71 73 73 34 93 95 94 96 136 132 128 124 153 157 179 187 196 Avg Prop Armor Cover (%) 10 | . . 13 6 11 11 13 10 10 5 8 . . . 4 . . . . 15 8 . . . . . 7 5 6 . . . . 43 Naked Turns 18 | . . . . . . . . . . . . . . . . . . . 18 . . . . . . . . . . . . . . Heaviest Build 222 | 13 33 100 122 116 123 123 117 179 184 184 186 207 208 183 177 188 183 183 222 112 110 113 118 137 121 166 142 131 131 152 157 218 218 Greatest Support 160 | 40 40 40 36 32 26 26 28 40 50 56 56 56 56 56 56 50 50 50 56 140 140 140 140 140 140 140 70 160 160 160 160 160 160 Greatest Overweight (x) 62 | . 7 6 7 7 6 4 5 5 4 4 3 3 3 6 3 3 3 3 62 9 . . 1 . . 5 5 4 . 1 . 1 1 Average Overweight (x) 2 | . . 3 2 4 4 3 4 4 3 3 3 2 2 3 3 3 3 3 1 1 . . . . . 2 2 2 . . . . . Largest Inventory Capacity 30 | 8 15 25 25 25 25 25 25 30 30 30 30 30 30 30 30 30 30 30 30 10 10 10 10 10 10 20 20 20 20 20 20 25 25 Average Capacity 23 | 7 14 22 25 25 25 25 25 27 30 30 30 30 30 30 30 30 30 30 25 10 10 10 10 10 10 16 20 20 20 20 20 23 24 Most Carried 30 | 5 15 25 25 25 25 25 25 30 30 30 30 30 30 30 30 30 30 30 30 10 10 10 10 10 10 20 20 20 20 20 20 25 25 Average Carried 22 | 3 10 21 24 24 24 24 24 26 29 29 29 29 27 29 29 29 29 30 23 9 9 10 9 9 9 16 19 19 19 18 18 23 24 Final Capacity 30 | 8 15 25 25 25 25 25 25 30 30 30 30 30 30 30 30 30 30 30 10 10 10 10 10 10 10 20 20 20 20 20 20 25 5 Final Carried 30 | 5 14 25 25 25 25 25 24 30 30 30 30 30 30 29 30 28 30 30 10 10 10 10 10 10 10 20 20 20 18 19 20 25 5 Class Distribution -------------------- 32% | Hauler-Tank 15% | Scavenger-Tank 14% | Scavenger-Mutant 10% | Scavenger-Executioner 9% | Mutant 4% | Tank 3% | Hauler-Mutant Dominant Class ---------------- Mutant | -10/Materials Mutant | -10/Subcaves Subdweller-Tank | -8/Materials Scavenger-Tank | -8/Garrison Scavenger-Tank | -8/Materials Tank | -8/Garrison Tank | -8/Materials Hauler-Tank | -7/Factory Hauler-Tank | -7/Waste Hauler-Tank | -7/Factory Hauler-Mutant | -7/Garrison Hauler-Tank | -7/Factory Hauler-Tank | -7/Garrison Hauler-Tank | -6/Factory Hauler-Tank | -6/Lower Caves Hauler-Tank | -6/Lower Caves Hauler-Tank | -6/Zion Hauler-Tank | -5/Proximity Caves Hacker-Gunner | -5/Factory Scavenger-Tank | -5/Waste Scavenger-Tank | -5/Factory Scavenger-Tank | -5/Upper Caves Scavenger-Tank | -5/Upper Caves Scavenger-Tank | -5/Warlord Scavenger-Tank | -4/Proximity Caves Scavenger-Executioner | -4/Factory Scavenger-Executioner | -4/Extension Scavenger-Executioner | -4/Cetus Scavenger-Executioner | -4/Archives Scavenger-Mutant | -4/Hub_04(d) Scavenger-Mutant | -3/Research Scavenger-Mutant | -3/Garrison Scavenger-Mutant | -3/Quarantine Resources | -11 -10 -10 -8 -8 -8 -8 -8 -7 -7 -7 -7 -7 -7 -6 -6 -6 -6 -5 -5 -5 -5 -5 -5 -5 -4 -4 -4 -4 -4 -4 -3 -3 -3 ----------- Run | Yrd Mat Sub Mat Gar Mat Gar Mat Fac Was Fac Gar Fac Gar Fac Low Low Zio Pro Fac Was Fac Upp Upp War Pro Fac Ext Cet Arc Hub Res Gar Qua Matter Collected 26933 | 312 287 387 476 901 1148 854 201 36 . 537 676 1107 1986 1058 228 659 86 305 1313 531 . 326 188 1114 1225 1724 1107 290 . 941 762 4447 1721 Remotely 60 | . . . . . . . . . . . . . . . . . . . . . . . . . . 60 . . . . . . . Salvage Created 25174 | 213 791 633 874 1534 1299 1475 941 89 267 485 1432 2081 1291 1595 114 560 . 135 1644 143 . 283 235 109 844 1381 1317 123 40 1071 . 1152 1023 Parts 1098 | 15 43 34 54 93 74 75 32 7 . 31 71 97 82 49 1 23 . 6 55 4 . 11 9 8 25 62 48 3 1 29 . 34 22 Haulers Intercepted 27 | . 2 . 4 . 6 . 4 . . 2 . 5 . 1 . . . . . . . . . . . 1 1 . . 1 . . . Recyclers Shooed 17 | 1 . . 1 . . . . . . . . 1 . 4 . . . . 3 . . . . . . 4 1 . . . . . 2 Parts Field Recycled 112 | . . . . . . . . . . . . . . . . . . . . . . . . . . 16 16 . . . 3 72 5 Retrieved Matter 2211 | . . . . . . . . . . . . . . . . . . . . . . . . . . 188 231 . . . 330 1427 35 Parts Self-Destructed 73 | . . 4 . . . . . . . . . . . . 1 12 . 7 . . . 7 4 . 38 . . . . . . . . Prevented 3 | . . 1 . . . . . . . . . . . . . 1 . . . . . . 1 . . . . . . . . . . Parts Restored . | . . . . . . . . . . . . . . . . . . . . . . . . . . . . . . . . . . Kills | -11 -10 -10 -8 -8 -8 -8 -8 -7 -7 -7 -7 -7 -7 -6 -6 -6 -6 -5 -5 -5 -5 -5 -5 -5 -4 -4 -4 -4 -4 -4 -3 -3 -3 ------- Run | Yrd Mat Sub Mat Gar Mat Gar Mat Fac Was Fac Gar Fac Gar Fac Low Low Zio Pro Fac Was Fac Upp Upp War Pro Fac Ext Cet Arc Hub Res Gar Qua Combat Hostiles Destroyed 480 | . 18 12 15 32 20 32 12 1 1 7 42 48 45 23 3 27 . 9 31 . . 9 10 3 23 18 12 2 . 10 . 4 11 Melee 4 | . . 1 1 . . . . . . . . . . . . . . . . . . . . . . . . . . 2 . . . Guns 261 | . 18 7 14 32 17 27 12 1 . 6 25 26 1 12 2 6 . . 10 . . 3 2 1 9 8 12 2 . 8 . . . Cannons 70 | . . 4 . . . . . . . . . 7 30 6 . . . . . . . . . 2 11 6 . . . . . 3 1 AOE 123 | . . . . . 3 5 . . 1 . 14 12 14 3 1 19 . 9 12 . . 6 8 . 3 4 . . . . . . 9 Classes Destroyed 28 | 2 5 3 2 3 . 1 1 . 1 . . 3 1 1 . . . . . . . . . 2 1 . 1 . . . . . 1 Worker 13 | . 1 . . . 2 . 2 . . 1 . . . . . . . . 5 . . . . . . . . . . 2 . . . Builder 9 | . . . 1 . 1 . . 1 . . . . . 2 . . . . . . . . . . . 1 2 . . 1 . . . Tunneler 10 | 6 . . . . . . 2 . . . . . . . . . . . 1 . . . . . . 1 . . . . . . . Hauler 27 | . 2 . 4 . 6 . 4 . . 2 . 5 . 1 . . . . . . . . . . . 1 1 . . 1 . . . Recycler 24 | 1 . . 3 . 1 . 1 . . 2 . . . 4 . . . . 2 . . . . . . 4 1 . . 1 . . 4 Minesweeper 1 | . . . . . . . . . . . . . . . . . . . . . . . . . 1 . . . . . . . . Mechanic 3 | . . . . . . . . . . . . 1 . . . . . . . . . . . . 1 . . . . . . . 1 Operator 8 | . . . . . . . . . . . . 3 . 1 . . . . 2 . . . . . . . 1 . . 1 . . . Watcher 8 | . . . . . . . 2 1 . . . . 1 1 . . . . . . . . . . . 1 . . . 2 . . . Swarmer 115 | . 6 . 9 8 6 12 3 . . 4 9 6 8 . . 18 . 4 . . . 2 4 . 11 4 . . . . . . 1 Cutter 4 | . . . . . . . . . . . . . 4 . . . . . . . . . . . . . . . . . . . . Saboteur 2 | . . . . . . . . . . . . . . 1 . . . . . . . . . . . . . . . . . . 1 Grunt 164 | . 9 . 1 12 4 9 6 1 . 1 16 22 17 7 2 6 . 4 17 . . 2 6 . 6 1 5 . . 5 . 2 3 Brawler 18 | . . . . 2 1 . . . . . . 4 . 2 . . . 1 . . . 1 . . 3 . 2 . . . . . 2 Duelist 14 | . . . . 1 . . . . . . 3 2 1 4 1 . . . . . . 1 . . . . . . . . . . 1 Protector 2 | . . . . . . . . . . . . 2 . . . . . . . . . . . . . . . . . . . . . Sentry 63 | . . 1 4 5 8 6 3 . . 1 8 4 7 2 . 3 . . . . . 1 . . 2 2 3 . . 1 . 2 . Demolisher 1 | . . . . . . . . . . . . . . . . . . . . . . . . . . . . . . . . . 1 Specialist 6 | . . . . . . 2 . . . . 2 . . . . . . . 1 . . . . . . . . . . . . . 1 Hunter 19 | . . . 1 2 1 . . . . . 1 . 2 2 . . . . 2 . . 2 . . . 6 . . . . . . . Programmer 51 | . . . . 2 . 3 . . . 1 3 8 6 5 . . . . 11 . . . . 1 1 5 . . . 4 . . 1 Behemoth 2 | . . . . . . . . . . . . . . . . . . . . . . . . . . . 2 . . . . . . Compactor 1 | . . . . . . . . . 1 . . . . . . . . . . . . . . . . . . . . . . . . Cetus Guard 2 | . . . . . . . . . . . . . . . . . . . . . . . . . . . . 2 . . . . . Striker 1 | . . . . . . . . . . . . . . . . . . . . . . . . 1 . . . . . . . . . Executioner 1 | . . . . . . . . . . . . . . . . . . . . . . . . 1 . . . . . . . . . Artisan 2 | . . 2 . . . . . . . . . . . . . . . . . . . . . . . . . . . . . . . Cobbler 1 | . . 1 . . . . . . . . . . . . . . . . . . . . . . . . . . . . . . . Subdweller 14 | . 3 11 . . . . . . . . . . . . . . . . . . . . . . . . . . . . . . . Thug 1 | . . . . . . . . . . . 1 . . . . . . . . . . . . . . . . . . . . . . Best Kill Streak 10 | 3 4 2 4 8 5 6 5 3 1 4 10 6 9 4 3 5 . 5 10 . . 7 4 1 10 5 4 1 . 4 . 2 8 Combat Bots Only 10 | . 4 2 4 8 4 6 3 1 1 4 10 6 9 4 3 5 . 5 7 . . 7 4 1 10 4 3 1 . 4 . 2 8 Max Kills in Single Turn 5 | 1 2 1 1 2 2 3 2 2 1 3 4 4 3 3 1 4 . 4 3 . . 3 4 1 3 4 1 1 . 5 . 1 2 Gunslinging 2 | . 1 . . . . 1 . . . 2 . 1 . . . 1 . . . . . . . . . . . . . . . . . Exploded 4 | . . . . . 1 3 . . 1 . 4 4 3 1 1 4 . 4 3 . . 3 4 . 2 4 . . . . . . 2 Melee 1 | . . 1 1 . . . . . . . . . . . . . . . . . . . . . . . . . . 1 . . . Uniques/NPCs Destroyed . | . . . . . . . . . . . . . . . . . . . . . . . . . . . . . . . . . . Combat | -11 -10 -10 -8 -8 -8 -8 -8 -7 -7 -7 -7 -7 -7 -6 -6 -6 -6 -5 -5 -5 -5 -5 -5 -5 -4 -4 -4 -4 -4 -4 -3 -3 -3 -------- Run | Yrd Mat Sub Mat Gar Mat Gar Mat Fac Was Fac Gar Fac Gar Fac Low Low Zio Pro Fac Was Fac Upp Upp War Pro Fac Ext Cet Arc Hub Res Gar Qua Hostile Shots Fired 2554 | . 57 28 56 96 69 132 53 3 2 42 285 180 294 146 4 58 . 4 273 . . 28 25 19 91 118 38 10 . 87 12 77 267 Missed 760 | . 23 5 10 21 20 34 15 1 . 12 98 61 90 42 3 18 . 3 76 . . 6 9 9 18 27 11 4 . 13 5 34 92 Intercepted 5 | . . . . . . . . . . . . . . . . . . . . . . . . . . . . . . . . . 5 Hits 1794 | . 34 23 46 75 49 98 38 2 2 30 187 119 204 104 1 40 . 1 197 . . 22 16 10 73 91 27 6 . 74 7 43 175 Melee 72 | . . . . 3 . . . . 2 . 4 6 6 19 . . . . . . . 3 . . 1 . . . . . . . 28 Projectile 1722 | . 34 23 46 72 49 98 38 2 . 30 183 113 198 85 1 40 . 1 197 . . 19 16 10 72 91 27 6 . 74 7 43 147 AOE 17 | . . . . 1 . . . . . . . . 2 . . . . . 3 . . . . 6 . . . . . . . . 5 Critical Strikes 106 | . . 1 2 5 3 7 4 . . 3 3 5 7 10 . 2 . . 13 . . 2 1 . 2 2 4 1 . 2 . 6 21 Actively Blocked 2 | . . . . . . . . . . . . . . . . . . . . . . . . . . . . . . . . . 2 Part Disruptions 2 | . . . . . . . . . . . . . . . . . . . 1 . . . . . . . . . . 1 . . . Damage Taken 34004 | . 352 497 446 1284 451 1488 551 28 71 441 2034 1600 2259 2027 20 803 . 39 4472 . . 616 513 709 887 1137 835 238 759 2352 323 1274 5498 Core 3750 | . 72 66 81 119 61 151 57 . . . 207 127 225 333 . 46 . . 394 . . 56 214 63 55 19 17 . 105 106 68 288 820 Absorbed by Shields 1846 | . . . . 39 . . . . . . 152 85 264 . . . . . . . . . . 242 565 447 52 . . . . . . Reduced by Siege Mode 281 | . . . . . . . . . . . . . . . . . . . . . . 9 5 . 47 53 5 14 . 81 . . 67 Redirected to Core 119 | . . . . . . . . . . . . . . . . . . . . . . . . . . . . . . . . . 119 Redirected to Shielding 42 | . . . . . . . . . . . . . . . . . . . . . . . . . . . . . . . . . 42 Ignored by Resistances 473 | . . . . 12 62 10 . . . . 50 62 166 . . . . . 33 . . . . 78 . . . . . . . . . Regen/Repaired (Parts) 2103 | . 103 . . . . . . . . . . . . 190 . . . . 357 . . . . 96 . . . . . 114 589 123 531 Core Remaining (%) 47 | 100 . 44 . . . . 14 . . . . . 20 . . . . 55 . . . . . . 21 . . . . 78 . . . Volleys Fired 1331 | 14 45 39 42 82 67 103 42 3 11 22 72 94 100 49 11 36 2 9 120 2 4 8 15 18 52 51 47 10 10 38 1 51 61 Largest 6 | 2 2 2 3 3 3 3 3 3 1 3 3 3 3 4 4 4 1 1 4 4 1 4 4 3 3 6 6 6 1 5 1 1 1 Hottest 346 | 70 100 110 170 120 78 177 185 202 39 210 240 258 141 260 255 273 98 80 346 132 90 132 132 156 186 302 329 329 81 289 75 94 94 Shots Fired 3033 | 28 87 65 108 216 196 252 123 9 11 61 165 222 213 150 20 69 2 9 206 5 5 16 30 26 90 165 207 42 10 112 1 51 61 Gun 2282 | 28 84 35 95 216 193 239 123 9 . 61 151 165 6 103 17 37 . . 136 4 1 11 22 8 50 129 207 42 10 100 . . . Cannon 611 | . . 30 13 . . . . . . . 1 49 197 43 . 19 2 . 50 1 4 . . 18 39 34 . . . 12 1 51 47 Launcher 137 | . . . . . 3 13 . . 11 . 13 8 10 4 3 13 . 9 20 . . 5 8 . 1 2 . . . . . . 14 Special 3 | . 3 . . . . . . . . . . . . . . . . . . . . . . . . . . . . . . . . Kinetic 1389 | 14 36 18 58 203 193 99 . . . . . 27 184 43 . . . . 31 4 1 11 22 17 55 144 120 30 . 79 . . . Thermal 1292 | 14 39 30 50 13 . 140 123 9 . 30 135 187 19 103 17 56 2 . 155 1 4 . . . 12 18 80 12 10 33 . . . Explosive 121 | . . . . . 3 2 . . 11 . 13 8 10 4 3 13 . 9 15 . . 5 8 . 1 2 . . . . . . 14 Electromagnetic 179 | . 12 17 . . . 11 . . . 31 17 . . . . . . . 5 . . . . . . . . . . . 1 51 34 Entropic 52 | . . . . . . . . . . . . . . . . . . . . . . . . 9 22 1 7 . . . . . 13 Robot Hit Streak 34 | 5 27 11 9 11 24 21 11 10 15 14 26 34 12 31 32 18 . . 20 8 . 10 13 14 15 19 16 15 23 28 12 13 9 Robot Miss Streak 9 | 3 1 2 4 9 5 5 3 1 1 3 5 5 3 3 1 1 . . 4 . . 2 5 1 4 4 4 2 . 3 . 2 2 Penetration Max 1 | . . . . . 1 1 . . . . . . 1 . . . . . . . . . . . . . 1 1 . 1 . . . Secondary Targets 49 | . 4 . 2 5 1 3 2 . . 3 5 5 . 2 . 1 . . 2 . . 1 1 . 2 . 4 2 . 4 . . . Max Gunslinging Chain 2 | . 1 . 1 1 1 1 1 . . 2 1 1 . 1 . 1 . . 1 . . 1 1 . 1 . 1 1 . 1 . . . Capacitor 99 | . . . . . . . . . . . . . . . . . . . . . . . . . . . . . . 1 1 51 46 Autonomous 6 | . . . . . . . . . . . . . 6 . . . . . . . . . . . . . . . . . . . . Shots Hit Robots 1957 | 17 70 50 54 121 128 151 71 9 9 42 137 166 113 115 13 31 . 4 116 5 . 6 18 19 56 107 131 38 10 90 1 31 28 Core Hits 1341 | 8 36 27 25 59 52 66 37 6 8 24 175 165 73 88 12 48 . 20 84 2 . 15 14 6 29 56 63 14 3 39 . 15 72 Critical Kills 10 | . . . 1 2 1 2 . . . . . . . . . . . . 1 . . . . . . . 2 . . 1 . . . Critical Parts Destroyed 10 | . . . . 1 . 1 . . . . 1 . . . . . . . . . . . . 1 2 1 . . . 3 . . . Critical Strikes 89 | 1 2 . 1 4 1 13 6 . . . 1 . 13 1 1 2 . . 6 . . . . 4 10 4 5 2 3 7 . 1 1 Burn 42 | 1 2 . . . . 10 6 . . . . . . 1 1 2 . . 5 . . . . . 2 2 2 2 3 3 . . . Destroy 17 | . . . 1 3 1 3 . . . . . . . . . . . . 1 . . . . . . 1 3 . . 4 . . . Blast 23 | . . . . . . . . . . . . . 13 . . . . . . . . . . 3 6 1 . . . . . . . Corrupt 1 | . . . . . . . . . . . . . . . . . . . . . . . . . . . . . . . . 1 . Smash 1 | . . . . . . . . . . . 1 . . . . . . . . . . . . . . . . . . . . . . Sever 1 | . . . . 1 . . . . . . . . . . . . . . . . . . . . . . . . . . . . . Detonate 3 | . . . . . . . . . . . . . . . . . . . . . . . . 1 2 . . . . . . . . Sunder 1 | . . . . . . . . . . . . . . . . . . . . . . . . . . . . . . . . . 1 Melee Attacks 176 | . . 31 6 36 3 6 2 . . . 39 . . 11 . . . 4 . . . . . 1 . 2 3 . . 23 2 2 5 Impact 44 | . . . . . . . . . . . 39 . . . . . . . . . . . . . . 2 3 . . . . . . Slashing 102 | . . 31 6 36 3 6 2 . . . . . . 9 . . . . . . . . . . . . . . . . 2 2 5 Piercing 24 | . . . . . . . . . . . . . . . . . . . . . . . . 1 . . . . . 23 . . . Sneak Attacks 11 | . . 2 1 . . . . . . . . . . 5 . . . 3 . . . . . . . . . . . . . . . Combat Hostiles . | . . . . . . . . . . . . . . . . . . . . . . . . . . . . . . . . . . Follow-up Attacks . | . . . . . . . . . . . . . . . . . . . . . . . . . . . . . . . . . . Damage Inflicted 74892 | 213 934 1198 1273 3046 2629 3661 1321 165 1398 642 4192 5775 5328 4229 582 2995 . 1875 6167 150 . 1077 1384 1519 3763 4005 3106 963 229 3375 31 1308 6359 Guns 34855 | 213 910 514 974 1864 2259 2905 1321 165 . 569 2876 3560 350 2198 318 666 . . 2310 118 . 111 315 266 1417 2022 3106 963 229 2336 . . . Cannons 13036 | . . 477 164 . . . . . . . . 640 3311 816 . 100 . . 431 32 . . . 1136 1629 1339 . . . . 31 1308 1622 Explosions 24483 | . . . . . 286 756 . . 1398 73 1287 1575 1667 814 264 2229 . 1875 3358 . . 966 1069 117 717 644 . . . 651 . . 4737 Melee 2415 | . . 207 135 1182 84 . . . . . 29 . . 401 . . . . . . . . . . . . . . . 377 . . . Ramming 79 | . . . . . . . . . . . . . . . . . . . 68 . . . . . . . . . . 11 . . . Kinetic 21993 | 124 362 266 470 1692 2259 1214 . . . . . 605 2910 816 . . . . 342 118 . 111 315 1136 1952 2906 1763 691 . 1941 . . . Thermal 21963 | 89 425 477 668 172 . 1742 1321 165 . 398 2625 3695 751 2247 318 766 . . 2399 32 . . . 117 573 744 1343 272 229 395 . . . Explosive 21576 | . . . . . 286 235 . . 1398 . 1287 1364 1667 765 264 2229 . 1875 2786 . . 966 1069 . 345 303 . . . . . . 4737 Electromagnetic 4882 | . 147 248 . . . 470 . . . 244 251 111 . . . . . . 572 . . . . . . . . . . 651 31 1308 849 Impact 29 | . . . . . . . . . . . 29 . . . . . . . . . . . . . . . . . . . . . . Slashing 2009 | . . 207 135 1182 84 . . . . . . . . 401 . . . . . . . . . . . . . . . . . . . Piercing 377 | . . . . . . . . . . . . . . . . . . . . . . . . . . . . . . 377 . . . Entropic 1984 | . . . . . . . . . . . . . . . . . . . . . . . . 266 893 52 . . . . . . 773 Highest Corruption 23 | . . . . 1 9 13 13 . . 1 2 4 17 3 3 . . . 23 23 23 23 23 23 3 1 8 . . 18 . . 16 Average Corruption 7 | . . . . 1 2 12 13 . . 1 1 2 11 1 2 . . . 12 23 23 23 23 23 2 1 2 . . 10 . . 3 Corruption Purged 21 | . . . . . . . . . . 1 . 4 . . 3 . . . . . . . . . . . 13 . . . . . . Corruption Blocked . | . . . . . . . . . . . . . . . . . . . . . . . . . . . . . . . . . . Effects 459 | . . . . 6 12 57 34 . . 2 22 35 53 12 7 . . . 52 18 19 32 30 3 16 . 3 . . 33 . . 13 Message Errors 107 | . . . . 2 3 18 5 . . 1 6 7 7 4 2 . . . 9 5 5 5 9 2 5 . 1 . . 6 . . 5 Matter Fused 113 | . . . . 1 4 9 10 . . . 6 7 13 4 3 . . . 10 4 9 9 5 1 5 . . . . 11 . . 2 Heat Flow Errors 59 | . . . . 1 . 6 2 . . 1 2 7 8 2 1 . . . 8 4 2 3 6 . 2 . . . . 4 . . . Energy Discharges 47 | . . . . . 1 11 6 . . . 1 5 6 . 1 . . . 3 1 . 4 2 . 2 . . . . 3 . . 1 Parts Rejected 4 | . . . . . . 2 1 . . . . . . . . . . . 1 . . . . . . . . . . . . . . Parts Fused 5 | . . . . . . . . . . . 1 . 1 . . . . . 2 . . . . . 1 . . . . . . . . Data Loss (minor) 55 | . . . . 1 2 2 4 . . . 3 6 7 1 . . . . 5 3 1 6 5 . 1 . 1 . . 5 . . 2 Data Loss (major) 18 | . . . . . . 1 1 . . . 1 1 3 . . . . . 4 1 1 . 1 . . . 1 . . 2 . . 1 Misfires 11 | . . . . . 1 . 1 . . . . 1 1 . . . . . 1 . 1 3 1 . . . . . . . . . 1 Alerts 8 | . . . . . 1 . . . . . 1 . 2 . . . . . 1 . . 1 . . . . . . . 2 . . . Misdirections 4 | . . . . . . . . . . . . . . . . . . . 4 . . . . . . . . . . . . . . Weapon Failures 28 | . . . . 1 . 8 4 . . . 1 1 5 1 . . . . 4 . . 1 1 . . . . . . . . . 1 Overload Shots . | . . . . . . . . . . . . . . . . . . . . . . . . . . . . . . . . . . Overflow Damage 1787 | . . 56 33 60 28 5 . . . . 14 17 157 163 . 71 . 68 133 . . 46 76 62 341 214 . . . 32 . 12 199 Projectiles 765 | . . . . . . . . . . . . 17 127 50 . . . . . . . . . 62 203 154 . . . . . 12 140 Explosions 737 | . . . . . 28 5 . . . . . . 30 20 . 71 . 68 116 . . 46 76 . 138 60 . . . 20 . . 59 Melee 285 | . . 56 33 60 . . . . . . 14 . . 93 . . . . 17 . . . . . . . . . . 12 . . . Knockbacks 44 | . . . . . . . . . . . . 3 17 9 . . . . 1 . . . . 4 4 6 . . . . . . . Impact 1 | . . . . . . . . . . . . . . . . . . . 1 . . . . . . . . . . . . . . Kinetic 41 | . . . . . . . . . . . . 3 15 9 . . . . . . . . . 4 4 6 . . . . . . . Secondary 2 | . . . . . . . . . . . . . 2 . . . . . . . . . . . . . . . . . . . . Self-Inflicted Damage 1018 | . . . . . . 45 . . . . 58 . 90 60 . . . . 279 . . 114 74 . 136 60 . . . 102 . . . Shots 25 | . . . . . . 3 . . . . 2 . 2 1 . . . . 10 . . 2 1 . 2 1 . . . 1 . . . Rammed 4 | . . . . . . . . . . . . . . . . . . . 3 . . . . . . . . . . 1 . . . Targets Rammed 4 | . . . . . . . . . . . . . . . . . . . 3 . . . . . . . . . . 1 . . . Kicked . | . . . . . . . . . . . . . . . . . . . . . . . . . . . . . . . . . . Crushed . | . . . . . . . . . . . . . . . . . . . . . . . . . . . . . . . . . . Highest Temperature 568 | 27 92 28 188 190 304 306 258 75 . 216 386 428 344 227 140 60 . . 539 369 248 438 568 302 163 436 93 . . 272 32 368 262 Average Temperature 100 | 11 28 9 42 56 79 97 76 39 . 76 110 115 109 54 85 26 . . 107 144 103 152 176 136 37 154 36 . . 72 32 46 83 Received Heat Transfer 5416 | . 123 63 108 291 162 486 315 18 . 54 540 386 445 346 9 144 . 9 553 . . 126 126 18 79 21 184 . . 217 27 196 370 Effects 51 | . . . . . 2 . . . . . 1 3 4 . . . . . 5 1 1 4 25 1 . 3 . . . 1 . . . Shutdowns 12 | . . . . . . . . . . . . 2 . . . . . . 2 1 . 1 6 . . . . . . . . . . Energy Bleed 15 | . . . . . . . . . . . 1 . 4 . . . . . . . 1 3 4 1 . . . . . 1 . . . Interference 12 | . . . . . 2 . . . . . . . . . . . . . 2 . . . 6 . . 2 . . . . . . . Matter Decay 4 | . . . . . . . . . . . . . . . . . . . 1 . . . 2 . . 1 . . . . . . . Short Circuit 2 | . . . . . . . . . . . . 1 . . . . . . . . . . 1 . . . . . . . . . . Damage (major) 5 | . . . . . . . . . . . . . . . . . . . . . . . 5 . . . . . . . . . . Damage (core) 1 | . . . . . . . . . . . . . . . . . . . . . . . 1 . . . . . . . . . . Siege Activations 23 | . . . . . . . . . . . . . . . . . . . . . . 1 1 . 5 9 2 1 . 3 . . 1 Total Turns 324 | . . . . . . . . . . . . . . . . . . . . . . 10 16 . 52 111 24 23 . 78 . . 10 Longest Duration 36 | . . . . . . . . . . . . . . . . . . . . . . 10 16 . 22 36 13 23 . 36 . . 10 Martial Activations . | . . . . . . . . . . . . . . . . . . . . . . . . . . . . . . . . . . Shielding Activations . | . . . . . . . . . . . . . . . . . . . . . . . . . . . . . . . . . . Robots Disrupted 1 | . . . . . . . . . . . 1 . . . . . . . . . . . . . . . . . . . . . . Combat Hostiles 1 | . . . . . . . . . . . 1 . . . . . . . . . . . . . . . . . . . . . . Robots Corrupted 15 | . . . . . . 1 . . . 1 2 . . . . . . . 3 . . . . . . . . . . . . 7 1 Combat Hostiles 8 | . . . . . . . . . . 1 2 . . . . . . . 3 . . . . . . . . . . . . 1 1 Parts Fried 44 | . . 4 . . . . . . . . 5 . . . . 1 . . 4 . . . . . . . . . . 6 . 20 4 Impact Corruptions 4 | . . . . . . . . . . . 1 . 2 . . . . . 1 . . . . . . . . . . . . . . Robots Melted 15 | . . . . . . 1 . . . . 1 3 . 2 . 2 . . 6 . . . . . . . . . . . . . . Combat Hostiles 14 | . . . . . . . . . . . 1 3 . 2 . 2 . . 6 . . . . . . . . . . . . . . Parts Melted 120 | 1 5 . . . . 10 5 . . 3 5 23 1 16 2 7 . . 26 . . . . . 1 1 7 . 1 6 . . . Heat Transferred 43396 | 333 1382 629 822 200 . 4405 3219 372 . 770 3037 7642 925 4915 746 1821 . . 4853 50 . . . 50 1000 1198 2953 618 592 864 . . . Parts Sabotaged 6 | . . . . . . . . . . . . . . 2 . . . . . . . . . . . . . . . . . . 4 Parts Stolen . | . . . . . . . . . . . . . . . . . . . . . . . . . . . . . . . . . . Parts Stripped . | . . . . . . . . . . . . . . . . . . . . . . . . . . . . . . . . . . Power Chain Reactions 3 | . . . . . . 1 . . . 1 . . . . . . . . 1 . . . . . . . . . . . . . . Alert | -11 -10 -10 -8 -8 -8 -8 -8 -7 -7 -7 -7 -7 -7 -6 -6 -6 -6 -5 -5 -5 -5 -5 -5 -5 -4 -4 -4 -4 -4 -4 -3 -3 -3 ------- Run | Yrd Mat Sub Mat Gar Mat Gar Mat Fac Was Fac Gar Fac Gar Fac Low Low Zio Pro Fac Was Fac Upp Upp War Pro Fac Ext Cet Arc Hub Res Gar Qua Maximum Alert Level 5 | . 1 . . 4 3 4 4 2 . . 5 4 5 4 . . . . 2 . . . . . . 2 2 2 . 1 . 5 5 Low Security (%) 34 | 100 96 . 100 11 . . . . 100 100 2 . . . . . . . 65 100 100 . . . . 75 34 . 100 97 100 6 . Level 1 6 | . 3 . . 9 . . . . . . 15 . . . . . . . 10 . . . . . . 12 40 41 . 2 . 5 . Level 2 9 | . . . . 17 9 6 . 100 . . 9 . . . . . . . 24 . . . . . . 12 25 58 . . . 15 . Level 3 16 | . . . . 30 90 29 50 . . . 30 34 2 . . . . . . . . . . . . . . . . . . 20 37 Level 4 24 | . . . . 31 . 63 49 . . . 29 65 19 100 . . . . . . . . . . . . . . . . . 29 9 Level 5 6 | . . . . . . . . . . . 13 . 77 . . . . . . . . . . . . . . . . . . 22 7 High Security 2 | . . . . . . . . . . . . . . . . . . . . . . . . . . . . . . . . . 44 Max Security . | . . . . . . . . . . . . . . . . . . . . . . . . . . . . . . . . . . Peak Influence 2493 | 10 218 . 131 1543 948 1520 1180 522 160 95 1828 1536 2493 1495 . . . . 598 198 6 . . . . 506 539 484 158 286 176 1960 1989 Initial 1308 | . 3 . . 31 752 467 741 522 155 70 21 959 1039 1308 . . . . 147 198 . . . . . 94 235 292 158 . 147 70 1102 Average 735 | 2 120 . 68 853 788 1131 1027 474 140 25 1035 1185 1898 1297 . . . . 200 94 . . . . . 165 250 401 107 52 111 1091 1465 Influence Increases 22480 | 35 492 20 499 1622 677 1103 846 32 45 285 1917 1564 1544 851 70 570 . 303 1254 . 8 190 235 270 636 925 1170 342 29 710 281 2190 1765 Destroy 0b10 Robot/C 11880 | . 300 20 300 800 400 640 420 20 . 140 920 920 900 460 60 540 . 220 620 . . 180 200 180 540 360 540 160 . 260 120 980 680 Destroy 0b10 Robot/NC 695 | 35 15 . 40 20 65 15 60 10 . 25 . 55 15 45 . . . . 50 . . . . 5 10 40 45 10 5 30 5 30 65 Destroy Leader 1566 | . 74 . 88 30 142 40 134 2 . 34 30 230 50 124 10 30 . 30 100 . . 10 20 . 40 94 46 . . 54 12 50 92 Allied During Kill 1865 | . . . . 49 . . 69 . . . 49 . . . . . . 53 . . . . . 25 31 . 336 170 5 34 27 630 387 Successful Hack 608 | . 57 . 9 12 7 7 23 . . 36 14 91 14 26 . . . . 27 . . . . . . 31 31 . . 36 109 10 68 Disable Machine 930 | . . . 15 75 30 15 45 . . 15 15 60 45 75 . . . . 120 . . . . . . 135 75 . 15 75 . 45 75 Anti-Garrison Action 1950 | . . . . 500 . 250 . . . . 550 . 300 . . . . . . . . . . . . . . . . . . 350 . Destroy Structure 1861 | . 1 . 17 76 33 61 20 . 45 5 234 73 145 61 . . . . 112 . 8 . . . . 250 52 2 4 206 8 80 368 Partial Spotted 15 | . . . . . . . . . . . . . . . . . . . 15 . . . . . . . . . . . . . . Lose Combat Pursuer 1110 | . 45 . 30 60 . 75 75 . . 30 105 135 75 60 . . . . 210 . . . 15 60 15 15 45 . . 15 . 15 30 Influence Decreases 20549 | 30 447 70 450 128 1501 302 1217 737 389 354 120 1907 536 1861 935 648 540 68 922 567 8 190 206 228 557 593 1128 470 425 430 467 324 1794 Entered New Map 8875 | . 2 25 . 18 791 252 779 627 289 30 10 869 446 1185 549 118 540 . 88 369 . . . 29 71 56 247 232 238 . 133 24 858 Time Decay 8444 | 30 435 45 430 . 410 . 368 110 100 314 . 688 . 586 386 490 . 48 524 198 8 190 186 119 456 507 551 198 47 370 294 . 356 Lost Part 1080 | . 10 . 20 50 . 50 10 . . 10 50 50 90 90 . 40 . . 270 . . . 10 . 10 30 60 . 20 60 . 20 130 Lost Ally 1250 | . . . . 60 . . 60 . . . 60 . . . . . . 20 40 . . . 10 80 20 . 120 40 120 . 40 280 300 Purge Threat 900 | . . . . . 300 . . . . . . 300 . . . . . . . . . . . . . . 150 . . . . . 150 Squads Dispatched 94 | . 4 . 1 . 2 . 5 . . 3 . 14 . 7 . . . . 10 . . . . . 1 7 . . . 6 3 . 31 Investigation 5 | . . . . . . . . . . 1 . 1 . . . . . . 1 . . . . . . 1 . . . . . . 1 Extermination 21 | . . . . . . . . . . 1 . 7 . 3 . . . . 4 . . . . . . 2 . . . 3 . . 1 Reinforcement 22 | . 4 . 1 . 2 . 1 . . 1 . 2 . . . . . . 4 . . . . . . 3 . . . 3 . . 1 Assault 40 | . . . . . . . 2 . . . . 4 . 4 . . . . . . . . . . 1 1 . . . . . . 28 Garrison 6 | . . . . . . . 2 . . . . . . . . . . . 1 . . . . . . . . . . . 3 . . Intercept . | . . . . . . . . . . . . . . . . . . . . . . . . . . . . . . . . . . Searches Triggered . | . . . . . . . . . . . . . . . . . . . . . . . . . . . . . . . . . . Construction Impeded 4 | . . . . . . . . . . . . 1 . . . . . . 1 . . . . . . 1 . . . 1 . . . Haulers Reinforced 3 | . . . . . . . . . . 1 . . . . . . . . . . . . . . . 1 . . . 1 . . . Active Scanning Responses . | . . . . . . . . . . . . . . . . . . . . . . . . . . . . . . . . . . Cargo Convoy Interrupts 1 | . . . . . . . . . . . . . . . . . . . 1 . . . . . . . . . . . . . . Stealth | -11 -10 -10 -8 -8 -8 -8 -8 -7 -7 -7 -7 -7 -7 -6 -6 -6 -6 -5 -5 -5 -5 -5 -5 -5 -4 -4 -4 -4 -4 -4 -3 -3 -3 --------- Run | Yrd Mat Sub Mat Gar Mat Gar Mat Fac Was Fac Gar Fac Gar Fac Low Low Zio Pro Fac Was Fac Upp Upp War Pro Fac Ext Cet Arc Hub Res Gar Qua Distress Signals 28 | . 3 . 1 . 2 2 3 . . 1 1 1 . 1 . . . . 2 . . . . 1 . . 1 2 . . 6 . 1 Communications Jammed 145 | . . . . . . . . . . . . . . 1 . . . . 2 . . . . 142 . . . . . . . . . Distress Signals 144 | . . . . . . . . . . . . . . . . . . . 2 . . . . 142 . . . . . . . . . Times Spotted 955 | . 34 13 21 40 25 40 33 2 6 9 53 71 49 39 2 25 . 7 63 . . 9 9 38 29 20 35 10 23 28 13 63 146 Peak Tracking Total 39 | . 5 2 6 6 5 5 7 2 5 4 8 6 7 5 2 10 . 4 8 . . 7 4 13 10 4 4 5 20 7 3 13 39 Tactical Retreats 55 | . 4 . 2 3 . 3 4 . . 2 4 5 5 3 . . . . 8 . . . 1 3 1 1 2 . . 1 . 1 2 Traps | -11 -10 -10 -8 -8 -8 -8 -8 -7 -7 -7 -7 -7 -7 -6 -6 -6 -6 -5 -5 -5 -5 -5 -5 -5 -4 -4 -4 -4 -4 -4 -3 -3 -3 ------- Run | Yrd Mat Sub Mat Gar Mat Gar Mat Fac Was Fac Gar Fac Gar Fac Low Low Zio Pro Fac Was Fac Upp Upp War Pro Fac Ext Cet Arc Hub Res Gar Qua Traps Triggered 67 | . 4 . 1 11 2 10 . 1 . . 11 7 10 1 . . . . 2 . 1 . . 1 . . 3 . . . . 2 . Indirectly 3 | . . . . . . 3 . . . . . . . . . . . . . . . . . . . . . . . . . . . Trap Hack Attempts 16 | . . . . . . . . . . . . . . 16 . . . . . . . . . . . . . . . . . . . Triggered . | . . . . . . . . . . . . . . . . . . . . . . . . . . . . . . . . . . Disarmed . | . . . . . . . . . . . . . . . . . . . . . . . . . . . . . . . . . . Reprogrammed 4 | . . . . . . . . . . . . . . 4 . . . . . . . . . . . . . . . . . . . Reused 2 | . . . . . . . . . . . . . . . . 2 . . . . . . . . . . . . . . . . . Traps Extracted 3 | . . . . . . . . . . . . . . 3 . . . . . . . . . . . . . . . . . . . Installed 2 | . . . . . . . . . . . . . . . . 2 . . . . . . . . . . . . . . . . . Triggered 2 | . . . . . . . . . . . . . . . . 2 . . . . . . . . . . . . . . . . . Most Traps Carried 3 | . . . . 3 3 . . . . . . . . 3 3 3 1 1 1 . . . . . . . . . . . . . . Machines | -11 -10 -10 -8 -8 -8 -8 -8 -7 -7 -7 -7 -7 -7 -6 -6 -6 -6 -5 -5 -5 -5 -5 -5 -5 -4 -4 -4 -4 -4 -4 -3 -3 -3 ---------- Run | Yrd Mat Sub Mat Gar Mat Gar Mat Fac Was Fac Gar Fac Gar Fac Low Low Zio Pro Fac Was Fac Upp Upp War Pro Fac Ext Cet Arc Hub Res Gar Qua Machines Disabled 96 | . . 1 1 14 2 4 3 . . 1 8 4 7 5 . 1 . . 8 . . . . 1 1 9 9 . 1 5 . 6 5 Max in Single Turn 4 | . . 1 1 2 1 1 . . . 1 1 2 1 4 . 1 . . 2 . . . . 1 1 2 1 . . 3 . 1 1 Garrison Access 1 | . . . . . . . . . . . . . . . . . . . 1 . . . . . . . . . . . . . . Garrison Relay 23 | . . . . 6 . 3 . . . . 7 . 4 . . . . . . . . . . . . . . . . . . 3 . Phase Generator 1 | . . . . 1 . . . . . . . . . . . . . . . . . . . . . . . . . . . . . Network Hub 1 | . . . . . . . . . . . . . . . . . . . . . . . . . . . . . . 1 . . . Machines Repaired . | . . . . . . . . . . . . . . . . . . . . . . . . . . . . . . . . . . Machines Dismantled . | . . . . . . . . . . . . . . . . . . . . . . . . . . . . . . . . . . Machines Sabotaged . | . . . . . . . . . . . . . . . . . . . . . . . . . . . . . . . . . . Overloaded Fab Kills . | . . . . . . . . . . . . . . . . . . . . . . . . . . . . . . . . . . Hacking | -11 -10 -10 -8 -8 -8 -8 -8 -7 -7 -7 -7 -7 -7 -6 -6 -6 -6 -5 -5 -5 -5 -5 -5 -5 -4 -4 -4 -4 -4 -4 -3 -3 -3 --------- Run | Yrd Mat Sub Mat Gar Mat Gar Mat Fac Was Fac Gar Fac Gar Fac Low Low Zio Pro Fac Was Fac Upp Upp War Pro Fac Ext Cet Arc Hub Res Gar Qua Machines Accessed 130 | . 6 2 3 3 7 3 5 . . 7 2 19 3 4 1 1 . . 17 . 2 . 1 2 . 5 18 . 1 4 7 2 5 Terminals 81 | . 4 . 1 3 4 3 4 . . 3 2 9 3 2 . 1 . . 8 . 2 . 1 . . 3 17 . . 3 4 2 2 Fabricators 8 | . . . . . . . . . . 1 . 3 . . . . . . 3 . . . . . . 1 . . . . . . . Repair Stations 6 | . 1 . . . . . . . . . . 1 . 1 . . . . 1 . . . . . . . . . . . 1 . 1 Recycling Units 5 | . 1 . . . 1 . . . . . . . . . . . . . 1 . . . . . . 1 1 . . . . . . Scanalyzers 13 | . . . 1 . 1 . 1 . . 2 . 3 . . . . . . 2 . . . . . . . . . . . 1 . 2 Garrison Access 11 | . . . 1 . 1 . . . . 1 . 3 . 1 . . . . 2 . . . . . . . . . . 1 1 . . Total Hacks 346 | . 18 4 5 7 21 6 13 . . 16 2 57 4 8 1 7 . . 48 . 6 . 1 2 . 14 33 . 25 6 24 3 15 Successful 189 | . 11 4 5 1 11 2 6 . . 7 1 26 1 2 1 7 . . 30 . 1 . 1 2 . 5 13 . 25 3 13 2 9 Failed 155 | . 7 . . 6 10 4 7 . . 8 1 31 3 6 . . . . 17 . 5 . . . . 9 20 . . 3 11 1 6 Catastrophic 29 | . 2 . . . 1 1 . . . 2 1 4 2 2 . . . . 2 . 1 . . . . 1 5 . . 1 2 . 2 Database Lockouts 2 | . . . . . . . . . . 1 . . . . . . . . 1 . . . . . . . . . . . . . . Manual 99 | . 8 . 2 2 5 . 10 . . 2 . 25 . 5 . . 1 . 15 . 2 . . . . 2 7 . . 2 8 1 2 Terminals 199 | . 10 . 2 7 14 6 11 . . 5 2 27 4 5 . 7 . . 26 . 6 . 1 . . 5 31 . . 5 16 3 6 Fabricators 22 | . . . . . . . . . . 2 . 7 . . . . . . 7 . . . . . . 6 . . . . . . . Repair Stations 14 | . 6 . . . . . . . . . . 1 . 2 . . . . 1 . . . . . . . . . . . 2 . 2 Recycling Units 11 | . 2 . . . 1 . . . . . . . . . . . . . 3 . . . . . . 3 2 . . . . . . Scanalyzers 50 | . . . 2 . 4 . 2 . . 8 . 17 . . . . . . 8 . . . . . . . . . . . 2 . 7 Garrison Access 18 | . . . 1 . 2 . . . . 1 . 5 . 1 . . . . 3 . . . . . . . . . . 1 4 . . Terminal Hacks 85 | . 1 4 . 1 6 2 . . . . 1 3 1 . 1 7 . . 7 . 1 . 1 2 . 2 10 . 25 1 4 2 3 Record 38 | . . 3 . . . . . . . . . . . . . 7 . . . . . . 1 1 . . . . 25 . . . 1 Part Schematic 1 | . . . . . . . . . . . . . . . . . . . 1 . . . . . . . . . . . . . . Prototype ID Bank 2 | . . . . . . . . . . . . . . . . . . . 1 . . . . . . . . . . . 1 . . Open Door 11 | . . . . . . 1 . . . . . . . . 1 . . . . . . . . 1 . . 7 . . . . 1 . Level Access Points 1 | . . . . . . . . . . . . . . . . . . . 1 . . . . . . . . . . . . . . Branch Access Points 2 | . . . . . . . . . . . . . . . . . . . 1 . . . . . . 1 . . . . . . . Emergency Access Points 3 | . . . . . . . . . . . 1 . 1 . . . . . . . . . . . . . . . . . . 1 . Terminal Index 1 | . . . . . . . . . . . . . . . . . . . . . . . . . . . . . . 1 . . . Garrison Index 1 | . . . . . . . . . . . . . . . . . . . . . . . . . . . . . . . 1 . . Alert Level 6 | . . . . . 1 . . . . . . . . . . . . . 1 . . . . . . 1 1 . . . 1 . 1 Unreport Threat 6 | . . . . . 2 . . . . . . 2 . . . . . . . . . . . . . . 1 . . . . . 1 Locate Traps 3 | . . . . . . . . . . . . 1 . . . . . . 1 . . . . . . . 1 . . . . . . Recall Reinforcements 1 | . . . . . 1 . . . . . . . . . . . . . . . . . . . . . . . . . . . . Registered Components 1 | . . . . . 1 . . . . . . . . . . . . . . . . . . . . . . . . . . . . Zone Layout 5 | . 1 . . . 1 . . . . . . . . . . . . . 1 . 1 . . . . . . . . . 1 . . Patrol Navigation 1 | . . . . 1 . . . . . . . . . . . . . . . . . . . . . . . . . . . . . Security Stations 1 | . . . . . . 1 . . . . . . . . . . . . . . . . . . . . . . . . . . . Proto ID Catalog 1 | . . 1 . . . . . . . . . . . . . . . . . . . . . . . . . . . . . . . Fabricator Hacks 10 | . . . . . . . . . . 2 . 3 . . . . . . 3 . . . . . . 2 . . . . . . . Network Status 1 | . . . . . . . . . . . . 1 . . . . . . . . . . . . . . . . . . . . . Load Schematic 5 | . . . . . . . . . . 1 . 1 . . . . . . 2 . . . . . . 1 . . . . . . . Build 4 | . . . . . . . . . . 1 . 1 . . . . . . 1 . . . . . . 1 . . . . . . . Repair Station Hacks 7 | . 3 . . . . . . . . . . . . 2 . . . . . . . . . . . . . . . . 2 . . Scan Component 4 | . 2 . . . . . . . . . . . . 1 . . . . . . . . . . . . . . . . 1 . . Repair 3 | . 1 . . . . . . . . . . . . 1 . . . . . . . . . . . . . . . . 1 . . Recycling Unit Hacks 6 | . 1 . . . 1 . . . . . . . . . . . . . 1 . . . . . . 1 2 . . . . . . Retrieve Components 6 | . 1 . . . 1 . . . . . . . . . . . . . 1 . . . . . . 1 2 . . . . . . Scanalyzer 36 | . . . 2 . 3 . 1 . . 4 . 12 . . . . . . 7 . . . . . . . . . . . 2 . 5 Insert Component 11 | . . . 1 . . . . . . 2 . 3 . . . . . . 3 . . . . . . . . . . . 1 . 1 Analyze 10 | . . . . . . . . . . 1 . 5 . . . . . . 3 . . . . . . . . . . . 1 . . Retrieve Study 15 | . . . 1 . 3 . 1 . . 1 . 4 . . . . . . 1 . . . . . . . . . . . . . 4 Garrison Access Hacks 7 | . . . 1 . 1 . . . . 1 . 1 . . . . . . 1 . . . . . . . . . . 1 1 . . Unlock Access 6 | . . . 1 . 1 . . . . 1 . 1 . . . . . . . . . . . . . . . . . 1 1 . . Seal Access 1 | . . . . . . . . . . . . . . . . . . . 1 . . . . . . . . . . . . . . Unauthorized Hacks 38 | . 6 . 2 . . . 5 . . . . 7 . . . . . . 11 . . . . . . . 1 . . 1 4 . 1 Terminals 36 | . 6 . 2 . . . 5 . . . . 7 . . . . . . 10 . . . . . . . 1 . . 1 4 . . Assimilate 1 | . . . . . . . . . . . . . . . . . . . . . . . . . . . . . . 1 . . . Botnet 14 | . 2 . 1 . . . 1 . . . . 2 . . . . . . 4 . . . . . . . 1 . . . 3 . . Disrupt 1 | . . . . . . . 1 . . . . . . . . . . . . . . . . . . . . . . . . . . Operators 2 | . . . . . . . . . . . . . . . . . . . 1 . . . . . . . . . . . 1 . . Skim 18 | . 4 . 1 . . . 3 . . . . 5 . . . . . . 5 . . . . . . . . . . . . . . Fabricators . | . . . . . . . . . . . . . . . . . . . . . . . . . . . . . . . . . . Repair Stations 2 | . . . . . . . . . . . . . . . . . . . 1 . . . . . . . . . . . . . 1 Patch 2 | . . . . . . . . . . . . . . . . . . . 1 . . . . . . . . . . . . . 1 Recycling Units . | . . . . . . . . . . . . . . . . . . . . . . . . . . . . . . . . . . Scanalyzers . | . . . . . . . . . . . . . . . . . . . . . . . . . . . . . . . . . . Garrison Access . | . . . . . . . . . . . . . . . . . . . . . . . . . . . . . . . . . . Data Cores Recovered 5 | . . . . . . . . . . . . 3 . 1 . . . . . . . . . . . . 1 . . . . . . Used . | . . . . . . . . . . . . . . . . . . . . . . . . . . . . . . . . . . Hacking Detections 105 | . 5 . 2 3 5 2 5 . . 5 2 19 3 3 . 1 . . 13 . 2 . 1 . . 4 15 . . 4 6 1 4 Full Trace Events 5 | . 1 . . 1 . . . . . 1 . 1 . . . . . . . . . . . . . 1 . . . . . . . Feedback Events . | . . . . . . . . . . . . . . . . . . . . . . . . . . . . . . . . . . Feedback Blocked . | . . . . . . . . . . . . . . . . . . . . . . . . . . . . . . . . . . Robot Schematics Acquired 5 | . . . . . . . . . . . . . . . . . 4 . . . . . . . . . . . . . . . 1 Robots Built . | . . . . . . . . . . . . . . . . . . . . . . . . . . . . . . . . . . Authchips . | . . . . . . . . . . . . . . . . . . . . . . . . . . . . . . . . . . Time . | . . . . . . . . . . . . . . . . . . . . . . . . . . . . . . . . . . Total Robot Build Rating . | . . . . . . . . . . . . . . . . . . . . . . . . . . . . . . . . . . Part Schematics Acquired 21 | . . . . . . . . . . 1 . 1 . . . . 14 . 3 . . . . . . . . . . . 1 . 1 Parts Built 7 | . . . . . . . . . . 2 . 1 . . . . . . 2 . . . . . . 2 . . . . . . . Authchips 2 | . . . . . . . . . . 1 . . . . . . . . 1 . . . . . . . . . . . . . . Time 337 | . . . . . . . . . . 42 . 169 . . . . . . 42 . . . . . . 84 . . . . . . . Total Part Build Rating 30 | . . . . . . . . . . 8 . 6 . . . . . . 8 . . . . . . 8 . . . . . . . Part Studies Acquired 13 | . . . 1 . 2 . 1 . . 1 . 3 . . . . . . 1 . . . . . . . . . . . . . 4 Parts Repaired 3 | . 1 . . . . . . . . . . . . 1 . . . . . . . . . . . . . . . . 1 . . Time 71 | . 13 . . . . . . . . . . . . 22 . . . . . . . . . . . . . . . . 36 . . Parts Recycled . | . . . . . . . . . . . . . . . . . . . . . . . . . . . . . . . . . . Recycled Matter . | . . . . . . . . . . . . . . . . . . . . . . . . . . . . . . . . . . Retrieved Matter . | . . . . . . . . . . . . . . . . . . . . . . . . . . . . . . . . . . Retrieved Components 16 | . 9 . . . 2 . . . . . . . . . . . . . 3 . . . . . . 2 . . . . . . . Parts Scanalyzed 6 | . . . . . . . . . . 1 . 1 . . . . . . 2 . . . . . . . . . . . 1 . 1 Part Schematics Acquired 5 | . . . . . . . . . . 1 . 1 . . . . . . 2 . . . . . . . . . . . 1 . . Parts Damaged 1 | . . . . . . . . . . . . . . . . . . . 1 . . . . . . . . . . . . . . Bothacking | -11 -10 -10 -8 -8 -8 -8 -8 -7 -7 -7 -7 -7 -7 -6 -6 -6 -6 -5 -5 -5 -5 -5 -5 -5 -4 -4 -4 -4 -4 -4 -3 -3 -3 ------------ Run | Yrd Mat Sub Mat Gar Mat Gar Mat Fac Was Fac Gar Fac Gar Fac Low Low Zio Pro Fac Was Fac Upp Upp War Pro Fac Ext Cet Arc Hub Res Gar Qua Used RIF Installer . | . . . . . . . . . . . . . . . . . . . . . . . . . . . . . . . . . . Robots Hacked 4 | . . . . . . . . . . . . . . 1 . . . 3 . . . . . . . . . . . . . . . Non-combat 1 | . . . . . . . . . . . . . . 1 . . . . . . . . . . . . . . . . . . . Combat 3 | . . . . . . . . . . . . . . . . . . 3 . . . . . . . . . . . . . . . Robot Hacks Applied 4 | . . . . . . . . . . . . . . 1 . . . 3 . . . . . . . . . . . . . . . parse_system 3 | . . . . . . . . . . . . . . . . . . 3 . . . . . . . . . . . . . . . find_chute 1 | . . . . . . . . . . . . . . 1 . . . . . . . . . . . . . . . . . . . Relay Couplers Released 89 | . . . . 24 . 11 . . . . 27 . 14 . . . . . . . . . . . . . . . . . . 13 . Machine Destruction 89 | . . . . 24 . 11 . . . . 27 . 14 . . . . . . . . . . . . . . . . . . 13 . Fabnet Peak Effective % . | . . . . . . . . . . . . . . . . . . . . . . . . . . . . . . . . . . Robots Rewired 30 | . . . . 3 . 3 . . . . 4 . . . . . . . . . . . . 5 2 . 7 . . . . 6 . Allies Hacked 7 | . . . . . . . . . . . . . . . . . . . . . . . . . . . . . . . . 2 5 Hacks Repelled . | . . . . . . . . . . . . . . . . . . . . . . . . . . . . . . . . . . Allies | -11 -10 -10 -8 -8 -8 -8 -8 -7 -7 -7 -7 -7 -7 -6 -6 -6 -6 -5 -5 -5 -5 -5 -5 -5 -4 -4 -4 -4 -4 -4 -3 -3 -3 -------- Run | Yrd Mat Sub Mat Gar Mat Gar Mat Fac Was Fac Gar Fac Gar Fac Low Low Zio Pro Fac Was Fac Upp Upp War Pro Fac Ext Cet Arc Hub Res Gar Qua Total Allies 48 | . . . . 3 . 3 . . . . 4 . . . . . 3 . . . . . . 5 2 . 21 . . 1 . 6 . Largest Group 16 | . . . . 3 . 3 3 . . . 4 . . . . . 3 3 2 . . . . 5 2 . 16 12 10 1 . 3 3 Highest-Rated Group 665 | . . . . 89 . 98 98 . . . 102 . . . . . 84 84 59 . . . . 220 94 . 665 476 379 26 . 118 141 Highest-Rated Ally 159 | . . . . 39 . 39 39 . . . 31 . . . . . 31 31 31 . . . . 49 47 . 159 51 51 26 . 51 47 Initial Warlord ECA Mod 37 | . . . . . 11 11 18 17 17 17 17 28 28 35 35 35 35 34 34 34 34 34 34 34 33 33 33 33 33 33 32 32 37 Total Orders 68 | . . . . . . . 2 . . . . . . . . . . . 1 . . 13 10 . 6 . . . . 7 2 19 8 STAY 26 | . . . . . . . 1 . . . . . . . . . . . . . . 2 1 . 3 . . . . 5 1 9 4 FOLLOW 20 | . . . . . . . 1 . . . . . . . . . . . . . . . . . 3 . . . . 2 1 9 4 DROP 1 | . . . . . . . . . . . . . . . . . . . . . . . . . . . . . . . . 1 . EXPLORE 14 | . . . . . . . . . . . . . . . . . . . 1 . . 6 7 . . . . . . . . . . RETURN 7 | . . . . . . . . . . . . . . . . . . . . . . 5 2 . . . . . . . . . . Ally Attacks 751 | . . . . 29 . 2 52 . . . 16 . . . . . . 10 . . . . . 39 18 . 112 56 19 12 44 217 125 Total Damage 26095 | . . . . 596 . . 772 . . . 251 . . . . . . 211 . . . . . 1602 471 . 2915 1243 575 317 899 8439 7804 Kills 156 | . . . . 8 . . 10 . . . 4 . . . . . . 2 . . . . . 8 4 . 21 8 1 3 7 48 32 Allies Corrupted 10 | . . . . . . . . . . . . . . . . . . . 1 . . . . . . . 3 . . . . 1 5 Allies Melted 3 | . . . . 1 . . . . . . . . . . . . . . . . . . . . . . . . . . . 2 . Borg Created 30 | . . . . . . . . . . . . . . . . . . . . . . . . . . . . . . 4 3 13 10 Largest Collective 6 | . . . . . . . . . . . . . . . . . . . . . . . . . . . . . . 4 4 6 6 Intel | -11 -10 -10 -8 -8 -8 -8 -8 -7 -7 -7 -7 -7 -7 -6 -6 -6 -6 -5 -5 -5 -5 -5 -5 -5 -4 -4 -4 -4 -4 -4 -3 -3 -3 ------- Run | Yrd Mat Sub Mat Gar Mat Gar Mat Fac Was Fac Gar Fac Gar Fac Low Low Zio Pro Fac Was Fac Upp Upp War Pro Fac Ext Cet Arc Hub Res Gar Qua Active Infowar (turns) 27564 | 6 200 1620 720 18 309 43 188 188 188 973 146 1431 122 1753 917 1177 1255 1112 1675 281 405 650 425 1435 1461 1380 1861 407 121 972 648 2019 1458 Optics 10901 | . . . . . . . . . . . . . . . . . . . . . 184 . . 415 1461 1355 1861 407 121 972 648 2019 1458 IFF 6064 | . . . . . . . . . . . . . . 1370 915 1118 1255 1112 294 . . . . . . . . . . . . . . Terrain 657 | . . . . . . . . . . . . . . . . . . . . 6 . . . . . . . . . . 647 4 . Seismic 10952 | 6 200 1620 720 18 309 43 188 188 188 973 144 1431 122 . . . . . 1047 275 405 650 425 . . 873 . . . . 241 136 750 Decoding 1 | . . . . . . . . . . . . . . . . . 1 . . . . . . . . . . . . . . . . T.N.C. 1 | . . . . . . . . . . . . . . . . . . . . . . . . . . . 1 . . . . . . Cloaking 4193 | . . . . . . . . . . . . . . . . . . . 366 . . . . 69 1170 1131 1097 . . 360 . . . Jamming 5660 | . . . . . . . . . . . 113 . . 1357 917 561 . . 1472 . 38 182 . 1020 . . . . . . . . . Robot Analysis Total . | . . . . . . . . . . . . . . . . . . . . . . . . . . . . . . . . . . Derelict Logs Recovered 15 | . . 2 . . . . . . . . . . . . 2 3 1 2 . . . 1 2 . 2 . . . . . . . . Drone Launches 9 | . . . . . . . . . . . . . . . . . . . 2 . . 3 4 . . . . . . . . . . Drone Recoveries 5 | . . . . . . . . . . . . . . . . . . . . . . 3 2 . . . . . . . . . . Exploration | -11 -10 -10 -8 -8 -8 -8 -8 -7 -7 -7 -7 -7 -7 -6 -6 -6 -6 -5 -5 -5 -5 -5 -5 -5 -4 -4 -4 -4 -4 -4 -3 -3 -3 ------------- Run | Yrd Mat Sub Mat Gar Mat Gar Mat Fac Was Fac Gar Fac Gar Fac Low Low Zio Pro Fac Was Fac Upp Upp War Pro Fac Ext Cet Arc Hub Res Gar Qua Turns Passed 40000 | 215 1252 2035 1084 1541 985 1358 841 227 200 1159 2072 2762 1501 1826 917 1280 1255 1112 2319 434 405 650 641 1602 1461 1380 1861 407 121 972 648 2019 1458 Spaces Moved 21476 | 99 620 1088 585 713 457 631 412 146 119 744 1113 1529 748 1042 639 882 983 858 1547 252 238 297 286 874 759 566 997 188 61 381 343 745 534 Core 214 | 2 1 . . . . . . . . . . . . . . . . . 183 . . . . . . . . . . . . . 28 Treads 6015 | 97 619 260 . . . . . . . . . . . . . . . . . 154 238 297 286 874 759 286 44 65 61 381 343 745 506 Legs . | . . . . . . . . . . . . . . . . . . . . . . . . . . . . . . . . . . Wheels 14754 | . . 828 585 713 457 631 412 146 119 744 1113 1529 748 1042 639 882 983 858 928 41 . . . . . 280 953 123 . . . . . Hover 493 | . . . . . . . . . . . . . . . . . . . 436 57 . . . . . . . . . . . . . Flight . | . . . . . . . . . . . . . . . . . . . . . . . . . . . . . . . . . . Fastest Speed 50 | 50 160 150 129 135 140 125 140 118 128 128 135 120 120 131 125 125 125 125 50 65 160 160 160 160 160 135 120 150 160 160 160 160 50 Average Speed 144 | 157 160 160 142 150 141 133 148 133 133 132 135 131 134 135 127 125 125 125 106 141 160 160 163 160 160 164 138 158 160 160 160 219 227 Slowest Speed 3150 | 160 400 190 205 195 180 140 155 150 150 150 135 135 135 180 131 125 125 125 3150 240 160 160 240 160 160 240 240 240 160 240 160 240 240 Overloaded Moves . | . . . . . . . . . . . . . . . . . . . . . . . . . . . . . . . . . . Propulsion Burnouts . | . . . . . . . . . . . . . . . . . . . . . . . . . . . . . . . . . . Robots Hopped . | . . . . . . . . . . . . . . . . . . . . . . . . . . . . . . . . . . Potential Cave-ins 10 | . . . . . . . . . . . . . . . . . . . 2 . . . . . . . . . . 3 . . 5 Cave-ins Triggered 4 | . . . . . . . . . . . . . . . . . . . . . . . . 1 . . . . . 2 . . 1 Teleports 4 | . . . . . . . . . . . . . . . . . . . . . . . . . . . . . . . . . 4 Exploration Rate (%) 60 | 4 97 72 48 89 61 75 50 5 71 22 94 47 82 27 80 92 84 92 44 94 12 56 66 92 86 14 89 71 93 37 13 62 47 Regions Visited 33 Branch Regions 14 Pre-discovered Areas 7 | . . 1 . . . . . . . . . 2 . . 1 1 1 . . . . . . . 1 . . . . . . . . Known Exits Taken 13 | . . 1 1 . 1 . . . . 1 . 1 . 1 . . . . . . 1 1 . . 1 1 . 1 . 1 1 . . Unknown Exits Taken 11 | 1 1 . . . . . 1 . . . . . . . 1 1 1 1 . . . . 1 1 . . 1 . 1 . . . . Scrap Searched 21 | . . 2 . . . . . . . . . . . . 3 4 4 4 . . . 2 1 . 1 . . . . . . . . Spaces Dug 220 | . 1 5 3 50 2 3 2 . . . 7 15 . 2 . 8 . . 33 . 4 . 20 . 7 6 1 . . 21 2 . 28 Terrain Destroyed 1681 | . 1 5 16 50 40 20 2 . 95 5 112 75 92 89 21 108 . 55 70 . 4 130 117 14 74 148 14 . . 206 2 . 116 Melee 36 | . . 3 2 . 2 3 2 . . . 2 . . 2 . . . . . . . . . . . 2 . . . 11 2 . 5 Projectile 276 | . 1 2 14 . 3 2 . . . . . 30 42 5 . 14 . . 38 . 4 1 . 5 27 37 14 . . 31 . . 6 AOE 1369 | . . . . 50 35 15 . . 95 5 110 45 50 82 21 94 . 55 32 . . 129 117 9 47 109 . . . 164 . . 105 Terrain Rammed . | . . . . . . . . . . . . . . . . . . . . . . . . . . . . . . . . . . Walls Destroyed . | . . . . . . . . . . . . . . . . . . . . . . . . . . . . . . . . . . Machines Disabled . | . . . . . . . . . . . . . . . . . . . . . . . . . . . . . . . . . . Actions | -11 -10 -10 -8 -8 -8 -8 -8 -7 -7 -7 -7 -7 -7 -6 -6 -6 -6 -5 -5 -5 -5 -5 -5 -5 -4 -4 -4 -4 -4 -4 -3 -3 -3 --------- Run | Yrd Mat Sub Mat Gar Mat Gar Mat Fac Was Fac Gar Fac Gar Fac Low Low Zio Pro Fac Was Fac Upp Upp War Pro Fac Ext Cet Arc Hub Res Gar Qua Total 27714 | 126 781 1279 747 994 661 946 542 173 146 861 1447 2057 1062 1313 721 994 1009 882 2034 326 258 458 435 1055 922 905 1362 277 75 627 435 1089 715 Wait 2490 | 1 71 36 23 59 62 68 66 . 9 37 55 268 93 82 54 33 16 3 222 30 8 147 120 86 81 195 130 42 . 146 45 179 23 Move 21444 | 98 619 1087 584 712 457 630 411 146 118 743 1112 1528 747 1041 638 881 982 857 1547 251 237 296 285 873 758 565 996 187 60 379 342 744 533 Hop . | . . . . . . . . . . . . . . . . . . . . . . . . . . . . . . . . . . Pick Up 345 | 5 17 26 22 12 12 9 1 7 2 14 15 27 16 27 3 8 3 . 27 3 . . 2 6 1 23 10 4 . 11 7 13 12 Fast Attach 196 | 7 12 2 5 . 4 7 3 4 . 6 1 9 7 9 1 1 1 . 24 13 3 1 4 13 2 13 21 10 . 6 5 1 1 Attach 169 | . 1 4 9 8 . 8 2 3 2 2 9 12 13 17 1 4 . . 19 5 . . 1 3 . 8 6 3 2 4 4 3 16 Detach 95 | . . 2 5 . 4 5 . 4 . 1 . 7 4 8 1 1 1 . 6 9 3 . . 2 . 9 14 2 . 1 4 1 1 Swap 531 | 1 5 30 24 17 32 16 10 2 3 19 39 55 18 32 8 21 2 8 40 4 2 5 4 5 3 17 33 3 . 3 11 22 37 Drop 366 | . 11 22 25 9 20 10 5 4 1 17 9 25 8 21 4 7 2 . 25 9 1 1 4 18 1 22 25 16 . 10 11 10 13 Fire 1331 | 14 45 39 42 82 67 103 42 3 11 22 72 94 100 49 11 36 2 9 120 2 4 8 15 18 52 51 47 10 10 38 1 51 61 Melee 176 | . . 31 6 36 3 6 2 . . . 39 . . 11 . . . 4 . . . . . 1 . 2 3 . . 23 2 2 5 Ram 4 | . . . . . . . . . . . . . . . . . . . 4 . . . . . . . . . . . . . . Kick . | . . . . . . . . . . . . . . . . . . . . . . . . . . . . . . . . . . Crush 1 | . . . . . . . . . . . . . . . . . . . . . . . . . . . . . . 1 . . . Escape Stasis 274 | . . . . 45 . 48 . . . . 63 32 56 . . . . . . . . . . . . . 24 . . 1 . 4 1 Rewire 236 | . . . . 13 . 36 . . . . 33 . . . . . . 1 . . . . . 30 24 . 53 . 3 . . 43 . Trap 18 | . . . . . . . . . . . . . . 16 . 2 . . . . . . . . . . . . . . . . . Miscellaneous 38 | . . . 2 1 . . . . . . . . . . . . . . . . . . . . . . . . . 4 3 16 12 Route ------- -11/Scrapyard -10/Materials (discovered 6 exits: [*Mat x3] / [*Min x2] / *Sub) -10/Subcaves (discovered 2 exits: *Mat x2) -8/Materials -8/Garrison (discovered 3 exits: *Mat x3) -8/Materials (discovered 3 exits: [*Fac x2] / Gar) -8/Garrison (discovered 3 exits: *Mat x3) -8/Materials -7/Factory -7/Waste -7/Factory -7/Garrison (discovered 3 exits: *Fac x3) -7/Factory (discovered 9 exits: *Fac x4 / *Sto x2 / Low x2 / Gar) -7/Garrison (discovered 3 exits: *Fac x3) -6/Factory (discovered 3 exits: *Fac / *Low x2) -6/Lower Caves -6/Lower Caves (discovered 2 exits: *Fac / *Zio) -6/Zion -5/Proximity Caves -5/Factory (discovered 6 exits: Fac x4 / Upp x2) -5/Waste -5/Factory (discovered 2 exits: Fac / *Upp) -5/Upper Caves -5/Upper Caves -5/Warlord -4/Proximity Caves -4/Factory (discovered 7 exits: *Res x2 / *Upp x2 / *Ext x2 / Arm) -4/Extension (discovered 3 exits: *Res x2 / *Cet) -4/Cetus (discovered 2 exits: *Res / *Arc) -4/Archives (discovered 2 exits: *Hub x2) -4/Hub_04(d) (discovered 3 exits: *Res x2 / Gar) -3/Research (discovered 2 exits: [Res] / Gar) -3/Garrison (discovered 3 exits: *Qua x3) -3/Quarantine (discovered 1 exit: Frg) History --------- Turn | Location | Event 42 | -11/Scrapyard | Discovered new exit (range 15) 216 | -11/Scrapyard | Entered Materials 302 | -10/Materials | Build established: Mutant 355 | -10/Materials | Discovered new exit (range 16) 371 | -10/Materials | Discovered new exit (range 8) 452 | -10/Materials | Discovered new exit (range 15) 605 | -10/Materials | Discovered new exit (range 14) 1016 | -10/Materials | Derelicts attacked the area 1047 | -10/Materials | Discovered new exit (range 15) 1254 | -10/Materials | Discovered new exit (range 13) 1312 | -10/Materials | Repaired Lgt. Treads 1468 | -10/Materials | Entered Subcaves 1469 | -10/Subcaves | Approached by a straggling Scientist 1493 | -10/Subcaves | Shifting Twisted Machinery released Mak. Axe 1634 | -10/Subcaves | Ambushed by Subdwellers from Twisted Machinery 2033 | -10/Subcaves | Learned Materials stockpile data 2118 | -10/Subcaves | Shifting Twisted Machinery released Sub. Laser 2339 | -10/Subcaves | Disturbed a concealed Subdweller 2438 | -10/Subcaves | A swath of the cavern ceiling suddenly collapsed 2462 | -10/Subcaves | Identified exit to Materials 2532 | -10/Subcaves | A swath of the cavern ceiling suddenly collapsed 2587 | -10/Subcaves | Shifting Twisted Machinery released Sub. Machine Gun 2605 | -10/Subcaves | Shifting Twisted Machinery released Sub. Laser 2638 | -10/Subcaves | Discovered exit to Materials (range 14) 2641 | -10/Subcaves | Visited Clippyterm 2645 | -10/Subcaves | Learned location of Deep Caves (-6) 2887 | -10/Subcaves | Core integrity fell below 50% 3071 | -10/Subcaves | Visited 4L-MR0's lab 3084 | -10/Subcaves | Found Prototype Special Melee Weapon 3093 | -10/Subcaves | Found Arachnoskeleton 3169 | -10/Subcaves | Build established: Scavenger-Mutant 3503 | -10/Subcaves | Entered Materials 3503 | -8/Materials | Evolved 4 slots: Propulsion x1, Utility x2, Weapon x1 4179 | -8/Materials | Build established: Subdweller-Tank 4385 | -8/Materials | Attached Arachnoskeleton, gained temporary slots: Propulsion x3 4496 | -8/Materials | Identified exit to Garrison 4563 | -8/Materials | Identified 1B-0RG's Assimilator 4587 | -8/Materials | Entered Garrison 4609 | -8/Garrison | Triggered checkpoint 4684 | -8/Garrison | Garrison Relay disabled 4828 | -8/Garrison | Destroyed 8 combat bots 4864 | -8/Garrison | Discovered new exit (range 8) 4925 | -8/Garrison | Triggered checkpoint 4980 | -8/Garrison | Garrison Relay disabled 5256 | -8/Garrison | Garrison Relay disabled 5348 | -8/Garrison | Garrison Relay disabled 5372 | -8/Garrison | Build established: Scavenger-Tank 5397 | -8/Garrison | Discovered new exit (range 8) 5634 | -8/Garrison | Discovered new exit (range 10) 5821 | -8/Garrison | Triggered checkpoint 5852 | -8/Garrison | Garrison Relay disabled 6111 | -8/Garrison | Phase Generator disabled 6128 | -8/Garrison | Entered Materials 6858 | -8/Materials | Discovered new exit (range 4) 7023 | -8/Materials | Build established: Tank 7088 | -8/Materials | Discovered new exit (range 16) 7113 | -8/Materials | Identified exit to Garrison 7113 | -8/Materials | Entered Garrison 7189 | -8/Garrison | Triggered checkpoint 7241 | -8/Garrison | System corruption reached 10% 7246 | -8/Garrison | Core integrity fell below 50% 7293 | -8/Garrison | Triggered checkpoint 7322 | -8/Garrison | Garrison Relay disabled 7409 | -8/Garrison | Triggered checkpoint 7429 | -8/Garrison | Triggered checkpoint 7431 | -8/Garrison | Triggered checkpoint 7657 | -8/Garrison | Triggered checkpoint 7687 | -8/Garrison | Learned Materials security intel 7695 | -8/Garrison | Garrison Relay disabled 7739 | -8/Garrison | Discovered new exit (range 15) 8015 | -8/Garrison | Discovered new exit (range 15) 8261 | -8/Garrison | Triggered checkpoint 8293 | -8/Garrison | Garrison Relay disabled 8344 | -8/Garrison | Discovered new exit (range 8) 8471 | -8/Garrison | Entered Materials 8471 | -8/Materials | Accompanied by 3 allies 8663 | -8/Materials | Garrison activated, responded to threat 8763 | -8/Materials | Garrison activated, responded to threat 8814 | -8/Materials | Lost 3 allies 8824 | -8/Materials | Core integrity fell below 20% 9271 | -8/Materials | First assault squad dispatched 9272 | -8/Materials | Discovered new exit (range 16) 9312 | -8/Materials | Entered Factory 9312 | -7/Factory | Evolved 2 slots: Propulsion x1, Utility x1 9539 | -7/Factory | Sucked down chute 9539 | -7/Factory | Entered Waste 9550 | -7/Waste | Found Prototype Launcher 9578 | -7/Waste | Spotted C-40 Crusher 9588 | -7/Waste | Destroyed C-40 Crusher 9598 | -7/Waste | Spotted C-40 Crusher 9601 | -7/Waste | Spotted C-40 Crusher 9643 | -7/Waste | Spotted C-40 Crusher 9661 | -7/Waste | Crushed by Compactor (0 parts destroyed, 1 dropped) 9664 | -7/Waste | Spotted C-40 Crusher 9680 | -7/Waste | Spotted C-40 Crusher 9692 | -7/Waste | Crushed by Compactor (0 parts destroyed, 1 dropped) 9724 | -7/Waste | Discovered new exit (range 10) 9739 | -7/Waste | Entered Factory 10036 | -7/Factory | Build established: Hauler-Tank 10677 | -7/Factory | Central database locked down 10781 | -7/Factory | Fabricated Arm. Huge Wheel (x2) 10865 | -7/Factory | Identified exit to Garrison 10898 | -7/Factory | Entered Garrison 11260 | -7/Garrison | Triggered checkpoint 11270 | -7/Garrison | Triggered checkpoint 11302 | -7/Garrison | Lost 3 allies 11318 | -7/Garrison | Destroyed 10 combat bots 11444 | -7/Garrison | Triggered checkpoint 11486 | -7/Garrison | Garrison Relay disabled 11501 | -7/Garrison | Garrison Relay disabled 11704 | -7/Garrison | Triggered checkpoint 11773 | -7/Garrison | Garrison Relay disabled 11784 | -7/Garrison | Garrison Relay disabled 11894 | -7/Garrison | Discovered new exit (range 11) 12048 | -7/Garrison | Triggered checkpoint 12195 | -7/Garrison | Garrison Relay disabled 12269 | -7/Garrison | Lost 3 parts (2u1w) 12312 | -7/Garrison | Triggered checkpoint 12364 | -7/Garrison | Discovered new exit (range 3) 12573 | -7/Garrison | Spotted B-75 Beast 12636 | -7/Garrison | Build established: Hauler-Mutant 12702 | -7/Garrison | Triggered checkpoint 12729 | -7/Garrison | Spotted B-75 Beast 12824 | -7/Garrison | Garrison Relay disabled 12864 | -7/Garrison | Garrison Relay disabled 12911 | -7/Garrison | Discovered new exit (range 3) 12943 | -7/Garrison | Spotted B-75 Beast 12970 | -7/Garrison | Entered Factory 13162 | -7/Factory | Identified Mni. Smartbomb Launcher 13253 | -7/Factory | Build established: Hauler-Tank 13370 | -7/Factory | First assault squad dispatched 14366 | -7/Factory | Discovered new exit (range 8) 14781 | -7/Factory | Discovered new exit (range 15) 14839 | -7/Factory | Identified exit to Storage 14965 | -7/Factory | Learned 2 Lower Caves zone layouts 14995 | -7/Factory | Build established: Hauler-Gunner 15085 | -7/Factory | Identified exit to Factory 15085 | -7/Factory | Identified exit to Lower Caves 15133 | -7/Factory | Learned Extension trap positions 15171 | -7/Factory | Learned location of Lower Caves (-6) 15192 | -7/Factory | Fabricated Mni. Smartbomb Launcher? 15217 | -7/Factory | Learned Hub_04(d) emergency access door positions 15279 | -7/Factory | Learned location of Zion (-6) 15323 | -7/Factory | Learned location of 1 exit from Cetus 15343 | -7/Factory | Discovered exit to Factory (range 4) 15547 | -7/Factory | Discovered exit to Factory (range 6) 15590 | -7/Factory | Build established: Hauler-Tank 15724 | -7/Factory | Identified exit to Garrison 15732 | -7/Factory | Entered Garrison 15734 | -7/Garrison | Triggered checkpoint 15736 | -7/Garrison | Triggered checkpoint 15895 | -7/Garrison | Core integrity fell below 50% 15944 | -7/Garrison | Garrison Relay disabled 16000 | -7/Garrison | System corruption reached 10% 16043 | -7/Garrison | Destroyed 9 combat bots 16050 | -7/Garrison | Triggered checkpoint 16099 | -7/Garrison | Destroyed 8 combat bots 16228 | -7/Garrison | Discovered exit to Factory (range 14) 16306 | -7/Garrison | Triggered checkpoint 16372 | -7/Garrison | Garrison Relay disabled 16619 | -7/Garrison | Lost 4 parts (2n1u1w) 16665 | -7/Garrison | Garrison Relay disabled 16987 | -7/Garrison | Discovered exit to Factory (range 10) 17052 | -7/Garrison | Triggered checkpoint 17092 | -7/Garrison | Triggered checkpoint 17140 | -7/Garrison | Garrison Relay disabled 17218 | -7/Garrison | Discovered exit to Factory (range 12) 17233 | -7/Garrison | Entered Factory 17233 | -6/Factory | Evolved 2 slots: Utility x1, Weapon x1 17315 | -6/Factory | Discovered new exit (range 3) 17450 | -6/Factory | Discovered new exit (range 16) 18283 | -6/Factory | First assault squad dispatched 18519 | -6/Factory | Repaired Arm. Huge Wheel+? 18530 | -6/Factory | Found Launcher Loader 18823 | -6/Factory | Lost 4 parts (1n1u2w) 18968 | -6/Factory | Discovered new exit (range 4) 18975 | -6/Factory | Identified exit to Lower Caves 19059 | -6/Factory | Entered Lower Caves 19169 | -6/Lower Caves | Met a Warlord Commander 19170 | -6/Lower Caves | Learned location of Warlord (-5) 19171 | -6/Lower Caves | Warlord Commander delivered Encrypted Comm Array 19173 | -6/Lower Caves | Found Encrypted Comm Array 19626 | -6/Lower Caves | Learned location of 1 exit from Factory 19680 | -6/Lower Caves | Discovered new exit (range 15) 19855 | -6/Lower Caves | Learned location of 1 exit from Factory 19976 | -6/Lower Caves | Entered another Lower Caves area 19980 | -6/Lower Caves | Learned Factory interactive machine intel 20130 | -6/Lower Caves | Discovered new exit (range 16) 20310 | -6/Lower Caves | Attracted the attention of an 0b10 checkpoint 20623 | -6/Lower Caves | Learned Extension emergency access door positions 20623 | -6/Lower Caves | Learned Armory emergency access door positions 20623 | -6/Lower Caves | Learned Factory stockpile data 20623 | -6/Lower Caves | Learned Factory garrison access intel 20694 | -6/Lower Caves | Learned 8 Factory zone layouts 20695 | -6/Lower Caves | Attracted the attention of an 0b10 base 20879 | -6/Lower Caves | Encountered a Warlord checkpoint 21090 | -6/Lower Caves | Discovered new exit (range 3) 21256 | -6/Lower Caves | Entered Zion 21320 | -6/Zion | Given A8's code to call for help 21371 | -6/Zion | Gained Derelict followers 21387 | -6/Zion | Discovered new exit (range 15) 21901 | -6/Zion | Received a visual enhancement algorithm 21903 | -6/Zion | Ran a visual enhancement algorithm 22511 | -6/Zion | Entered Proximity Caves 22511 | -5/Proximity Caves | Accompanied by 3 allies 22533 | -5/Proximity Caves | Learned Factory emergency access door positions 23534 | -5/Proximity Caves | Learned 4 Factory zone layouts 23601 | -5/Proximity Caves | Discovered new exit (range 13) 23623 | -5/Proximity Caves | Entered Factory 23623 | -5/Factory | Accompanied by 2 allies 23623 | -5/Factory | Evolved 2 slots: Power x1, Utility x1 23624 | -5/Factory | Identified exit to Upper Caves 23625 | -5/Factory | Identified exit to Factory 23629 | -5/Factory | Loaded intel: 54 interactive machine locations 23630 | -5/Factory | Loaded intel: 4 garrison access locations 23691 | -5/Factory | Fabricated Arm. Huge Wheel (x2) 24292 | -5/Factory | Central database locked down 24482 | -5/Factory | Build established: Hauler-Gunner 24793 | -5/Factory | Build established: Hacker-Gunner 24848 | -5/Factory | Learned 2 Extension zone layouts 24850 | -5/Factory | Watched by a mysterious "MATRIX" hacker. 24891 | -5/Factory | Learned location of 1 exit from Quarantine 24923 | -5/Factory | Learned Research emergency access door positions 24958 | -5/Factory | Learned 12 Factory zone layouts 24960 | -5/Factory | Learned Extension emergency access door positions 24961 | -5/Factory | Learned Research trap positions 24964 | -5/Factory | Learned Testing trap positions 24977 | -5/Factory | Learned 8 Research zone layouts 25002 | -5/Factory | Learned Research trap positions 25131 | -5/Factory | Garrison activated, responded to threat 25153 | -5/Factory | Lost 3 parts (1n1u1w) 25297 | -5/Factory | System corruption reached 10% 25302 | -5/Factory | Cargo convoy interrupted 25340 | -5/Factory | Lost 12 parts (1p1n5u5w) 25427 | -5/Factory | Destroyed 7 combat bots 25434 | -5/Factory | Lost 5 parts (2p1n1u1w) 25454 | -5/Factory | Released all parts (5) 25645 | -5/Factory | Lost 4 parts (3n1u) 25746 | -5/Factory | Build established: Mutant 25942 | -5/Factory | Manually triggered Chute Trap 25942 | -5/Factory | Sucked down chute 25942 | -5/Factory | Entered Waste 25942 | -5/Waste | The area was eerily silent 25993 | -5/Waste | Found Prototype Processor 26033 | -5/Waste | Found Damper Plating 26117 | -5/Waste | Identified Exp. Target Analyzer 26167 | -5/Waste | Found Fusion Bomb Launcher 26339 | -5/Waste | Discovered new exit (range 11) 26376 | -5/Waste | Entered Factory 26512 | -5/Factory | Build established: Scavenger-Tank 26781 | -5/Factory | Entered Upper Caves 26783 | -5/Upper Caves | Attracted the attention of an 0b10 checkpoint 26819 | -5/Upper Caves | Destroyed 7 combat bots 27012 | -5/Upper Caves | Identified exit to Upper Caves 27431 | -5/Upper Caves | Entered another Upper Caves area 27693 | -5/Upper Caves | Learned Factory terminal intel 27860 | -5/Upper Caves | Core integrity fell below 50% 27973 | -5/Upper Caves | Learned Factory stockpile data 28013 | -5/Upper Caves | Discovered new exit (range 11) 28072 | -5/Upper Caves | Entered Warlord 28127 | -5/Warlord | System corruption cleaned by Quarantine Array 28242 | -5/Warlord | Found Signal Generator 28683 | -5/Warlord | Met Warlord 28708 | -5/Warlord | Warlord's base attacked by MAIN.C 29006 | -5/Warlord | Found Prototype Energy Gun 29009 | -5/Warlord | Found Prototype Energy Gun 29015 | -5/Warlord | Found Prototype Energy Cannon 29018 | -5/Warlord | Found Prototype Energy Cannon 29058 | -5/Warlord | Warlord forces counterattacked 29134 | -5/Warlord | Found Prototype Ballistic Cannon 29134 | -5/Warlord | Identified Hvy. Autocannon 29161 | -5/Warlord | Identified Vortex Cannon (x2) 29171 | -5/Warlord | Found Prototype Reactor 29171 | -5/Warlord | Identified Vortex Chain Reactor 29172 | -5/Warlord | Lost 23 allies 29176 | -5/Warlord | Found Prototype Device 29176 | -5/Warlord | Identified Exp. Cloaking Device 29184 | -5/Warlord | Found Exp. Target Analyzer 29232 | -5/Warlord | Identified Vortex Rifle (x2) 29263 | -5/Warlord | Spotted Striker 29265 | -5/Warlord | Destroyed Striker 29319 | -5/Warlord | Lost 7 allies 29383 | -5/Warlord | Warlord base infiltrated, sounded retreat 29442 | -5/Warlord | Spotted Executioner 29455 | -5/Warlord | Destroyed Executioner 29531 | -5/Warlord | Lost 3 allies 29544 | -5/Warlord | Spotted Striker 29574 | -5/Warlord | Spotted Executioner 29606 | -5/Warlord | Spotted Striker 29608 | -5/Warlord | Spotted Striker 29620 | -5/Warlord | Spotted Striker 29626 | -5/Warlord | Spotted Striker 29644 | -5/Warlord | Discovered new exit (range 18) 29656 | -5/Warlord | Crushed by falling debris 29674 | -5/Warlord | Entered Proximity Caves 29688 | -4/Proximity Caves | Learned location of Quarantine (-3) 29821 | -4/Proximity Caves | Attracted the attention of an 0b10 outpost 29870 | -4/Proximity Caves | Destroyed 10 combat bots 30197 | -4/Proximity Caves | Learned Research trap positions 30552 | -4/Proximity Caves | Attracted the attention of an 0b10 checkpoint 30734 | -4/Proximity Caves | Spotted B-86 Titan 30802 | -4/Proximity Caves | Discovered exit to Factory (range 16) 31135 | -4/Proximity Caves | Entered Factory 31135 | -4/Factory | Evolved 2 slots: Weapon x2 31136 | -4/Factory | Identified exit to Research 31138 | -4/Factory | Loaded intel: 28 terminal locations 31174 | -4/Factory | Identified exit to Upper Caves 31174 | -4/Factory | Identified exit to Extension 31174 | -4/Factory | Identified exit to Armory 31392 | -4/Factory | Discovered exit to Research (range 23) 31519 | -4/Factory | Build established: Scavenger-Executioner 31952 | -4/Factory | Fabricated Arm. Huge Wheel? 32385 | -4/Factory | First assault squad dispatched 32515 | -4/Factory | Entered Extension 32517 | -4/Extension | Loaded intel: 18 trap records 32692 | -4/Extension | Rescued A7 32752 | -4/Extension | Lost 5 parts (1n1u3w) 32920 | -4/Extension | Rescued a captive Derelict 33203 | -4/Extension | Rescued a captive Derelict 33217 | -4/Extension | Rescued a captive Derelict 33218 | -4/Extension | Rescued a captive Derelict 33385 | -4/Extension | Spotted B-86 Titan 33393 | -4/Extension | Spotted B-86 Titan 33404 | -4/Extension | Destroyed B-86 Titan 33424 | -4/Extension | Destroyed B-86 Titan 33452 | -4/Extension | Extracted ID and sensor layout for unrecognized location from A7's data core 33457 | -4/Extension | Lost 3 allies 33553 | -4/Extension | Rescued a captive Derelict 33554 | -4/Extension | Rescued a captive Derelict 33650 | -4/Extension | Rescued a captive Derelict 33652 | -4/Extension | Rescued a captive Derelict 33742 | -4/Extension | Rescued a captive Derelict 33762 | -4/Extension | Rescued a captive Derelict 33846 | -4/Extension | Rescued a captive Derelict 33847 | -4/Extension | Rescued a captive Derelict 34133 | -4/Extension | Rescued a captive Derelict 34227 | -4/Extension | Discovered exit to Research (range 10) 34228 | -4/Extension | Discovered new exit (range 6) 34317 | -4/Extension | Lost 4 allies 34376 | -4/Extension | Entered Cetus 34376 | -4/Cetus | Accompanied by 12 allies 34377 | -4/Cetus | Identified exit to Archives 34388 | -4/Cetus | Spotted Cetus Guard 34390 | -4/Cetus | Spotted Cetus Guard 34392 | -4/Cetus | Spotted Cetus Guard 34398 | -4/Cetus | Allies destroyed Cetus Guard 34398 | -4/Cetus | Spotted Cetus Guard 34404 | -4/Cetus | Destroyed Cetus Guard 34410 | -4/Cetus | Allies destroyed Cetus Guard 34415 | -4/Cetus | Allies destroyed Cetus Guard 34569 | -4/Cetus | Spotted Cetus Guard 34570 | -4/Cetus | Spotted Cetus Guard 34576 | -4/Cetus | Spotted Cetus Guard 34579 | -4/Cetus | Spotted Cetus Guard 34587 | -4/Cetus | Destroyed Cetus Guard 34597 | -4/Cetus | Allies destroyed Cetus Guard 34600 | -4/Cetus | Allies destroyed Cetus Guard 34601 | -4/Cetus | Allies destroyed Cetus Guard 34611 | -4/Cetus | Discovered exit to Research (range 22) 34641 | -4/Cetus | Met Revision 17 34783 | -4/Cetus | Entered Archives 34783 | -4/Archives | Accompanied by 10 allies 34809 | -4/Archives | Met Zhirov 34815 | -4/Archives | Reinforcements dispatched to Archives 34819 | -4/Archives | Unable to access archive contents 34825 | -4/Archives | Discovered new exit (range 23) 34858 | -4/Archives | Unable to access archive contents 34860 | -4/Archives | Reinforcements dispatched to Archives 34862 | -4/Archives | Zhirov warped through subspace 34866 | -4/Archives | Discovered new exit (range 22) 34874 | -4/Archives | Read partially decrypted archive contents 34880 | -4/Archives | Zhirov detonated Archives 34904 | -4/Archives | Entered Hub_04(d) 34911 | -4/Hub_04(d) | Lost 10 allies 34919 | -4/Hub_04(d) | Discovered exit to Research (range 15) 35006 | -4/Hub_04(d) | Crushed by falling debris 35016 | -4/Hub_04(d) | Crushed by falling debris 35302 | -4/Hub_04(d) | Found Unknown Device 35302 | -4/Hub_04(d) | Identified Quantum Capacitor 35312 | -4/Hub_04(d) | Found Quantum Capacitor 35315 | -4/Hub_04(d) | Found Quantum Capacitor 35414 | -4/Hub_04(d) | Identified exit to Garrison 35513 | -4/Hub_04(d) | System corruption reached 10% 35593 | -4/Hub_04(d) | Build established: Scavenger-Mutant 35660 | -4/Hub_04(d) | Assimilating Eye 7a into Collective. 35670 | -4/Hub_04(d) | Assimilating Processor 7a into Collective. 35685 | -4/Hub_04(d) | Discovered exit to Research (range 9) 35692 | -4/Hub_04(d) | Assimilating Conveyor 7a into Collective. 35759 | -4/Hub_04(d) | Assimilating Sentinel 7a into Collective. 35847 | -4/Hub_04(d) | Network Hub disabled 35870 | -4/Hub_04(d) | Spotted Lightning 35872 | -4/Hub_04(d) | Spotted Lightning 35876 | -4/Hub_04(d) | Entered Research 35876 | -3/Research | Accompanied by 3 allies 35876 | -3/Research | Evolved 2 slots: Utility x2 35878 | -3/Research | Loaded intel: 81 trap records 35938 | -3/Research | Repaired Centrium Medium Armor Plating 35991 | -3/Research | Garrison activated, responded to threat 36076 | -3/Research | Revision forces began assault on 0b10 36112 | -3/Research | Discovered new exit (range 12) 36159 | -3/Research | Met up with Revision 17++ 36271 | -3/Research | Assimilating Warden 8a into Collective. 36446 | -3/Research | Assimilating Processor 8a into Collective. 36503 | -3/Research | Assimilating Conveyor 8a into Collective. 36517 | -3/Research | Identified exit to Garrison 36524 | -3/Research | Entered Garrison 36524 | -3/Garrison | Accompanied by 4 allies 36569 | -3/Garrison | Assimilating Plague 8a into Collective. 36661 | -3/Garrison | Assimilating Master 8a into Collective. 36744 | -3/Garrison | Triggered checkpoint 36772 | -3/Garrison | Garrison Relay disabled 36983 | -3/Garrison | Triggered checkpoint 37000 | -3/Garrison | Spotted B-86 Titan 37004 | -3/Garrison | Triggered checkpoint 37029 | -3/Garrison | Assimilating Veteran 8a into Collective. 37032 | -3/Garrison | Assimilating Titan 8a into Collective. 37040 | -3/Garrison | Assimilating Veteran 8b into Collective. 37060 | -3/Garrison | Lost 5 allies 37097 | -3/Garrison | Found Mni. Smartbomb Launcher 37188 | -3/Garrison | Triggered checkpoint 37204 | -3/Garrison | Triggered checkpoint 37388 | -3/Garrison | Discovered new exit (range 11) 37438 | -3/Garrison | Triggered checkpoint 37444 | -3/Garrison | Assimilating Veteran 8c into Collective. 37451 | -3/Garrison | Assimilating Veteran 8d into Collective. 37477 | -3/Garrison | Garrison Relay disabled 37776 | -3/Garrison | Triggered checkpoint 37781 | -3/Garrison | Assimilating Veteran 8e into Collective. 37784 | -3/Garrison | Assimilating Veteran 8f into Collective. 37862 | -3/Garrison | Garrison Relay disabled 37940 | -3/Garrison | Triggered checkpoint 37943 | -3/Garrison | Assimilating Warden 8b into Collective. 37961 | -3/Garrison | Discovered new exit (range 3) 38050 | -3/Garrison | Discovered new exit (range 10) 38080 | -3/Garrison | Assimilating Warden 8c into Collective. 38290 | -3/Garrison | Assimilating Swordsman 8a into Collective. 38320 | -3/Garrison | Assimilating Warden 8d into Collective. 38336 | -3/Garrison | Lost 5 allies 38543 | -3/Garrison | Entered Quarantine 38543 | -3/Quarantine | Accompanied by 6 allies 38544 | -3/Quarantine | Identified exit to Protoforge 38652 | -3/Quarantine | Found Alien Artifact 38652 | -3/Quarantine | Identified Dimensional Node Initializer 38652 | -3/Quarantine | Initialized slip node 38665 | -3/Quarantine | Found Alien Artifact 38815 | -3/Quarantine | Assimilating Analyst 8a into Collective. 38824 | -3/Quarantine | Found Alien Artifact 39010 | -3/Quarantine | Assimilating Master 8b into Collective. 39043 | -3/Quarantine | First assault squad dispatched 39120 | -3/Quarantine | Assimilating Destroyer 8a into Collective. 39123 | -3/Quarantine | Assimilating Champion 8a into Collective. 39126 | -3/Quarantine | Assimilating Swordsman 8b into Collective. 39145 | -3/Quarantine | Lost 7 allies 39263 | -3/Quarantine | Assimilating Conveyor 8b into Collective. 39327 | -3/Quarantine | Assimilating Analyst 8b into Collective. 39349 | -3/Quarantine | High security lockdown imminent 39372 | -3/Quarantine | Identified Transdimensional Reconstructor 39372 | -3/Quarantine | Warped through subspace to slip node 39384 | -3/Quarantine | Destroyed 8 combat bots 39391 | -3/Quarantine | Found Transdimensional Reconstructor 39395 | -3/Quarantine | Found Alien Artifact 39396 | -3/Quarantine | Identified Phase Redirector 39398 | -3/Quarantine | Lost 6 allies 39400 | -3/Quarantine | Found Alien Artifact 39429 | -3/Quarantine | High security lockdown engaged 39570 | -3/Quarantine | Crushed by falling debris 39571 | -3/Quarantine | Core integrity fell below 50% 39654 | -3/Quarantine | Warped through subspace to slip node 39826 | -3/Quarantine | Assimilating Master 8c into Collective. 39836 | -3/Quarantine | Cryocooling Duct disabled 39837 | -3/Quarantine | Assimilating Master 8d into Collective. 39842 | -3/Quarantine | Assimilating Master 8e into Collective. 39851 | -3/Quarantine | Ambient heat levels rising (+20) 39884 | -3/Quarantine | Identified Hpw. Transdimensional Reconstructor (x2) 39884 | -3/Quarantine | Warped through subspace to slip node 39937 | -3/Quarantine | Spotted Executioner 39937 | -3/Quarantine | Spotted Striker 39937 | -3/Quarantine | Spotted Striker 39937 | -3/Quarantine | Spotted Striker 39962 | -3/Quarantine | Spotted Investigator 39963 | -3/Quarantine | Core integrity fell below 20% 39966 | -3/Quarantine | System corruption reached 10% 39978 | -3/Quarantine | Warped through subspace to slip node 39996 | -3/Quarantine | Spotted Executioner 39996 | -3/Quarantine | Spotted Executioner 39997 | -3/Quarantine | Spotted Executioner 39998 | -3/Quarantine | Spotted Executioner 39999 | -3/Quarantine | Spotted Investigator 40001 | -3/Quarantine | Destroyed by Executioner with Helical Railgun Last Messages --------------- 39999_ C-45 Heavy ARC bursts open, deploying its payload. 39999_ G-73 Enforcer unfolds itself. 39999_ B-74 Champion unfolds itself. 39999_ G-67 Veteran unfolds itself. 39999_ I-47 Archangel unfolds itself. 39999_ Investigator unfolds itself. 39999_ Investigator: "PRIMARY THREAT IDENTIFIED. CONTAINMENT PROTOCOL APPLICABLE." 39999_ Penetrated by Slug. 39999_ P-80 Master resets P-80 Master, system corruption cleaned. 39999_ Adv. Cooling System blown off. 39999_ P-80 Master resets I-47 Archangel, system corruption cleaned. 40000_ Critical hit (Burn: +50). 40001_ Penetrated by Slug. 40001_ Arm. Heavy Treads+ destroyed. 40001_ Critical hit (Burn: +37). 40001_ Penetrated by Slug. Map ----- +----------------------------------------------------+ | ?# # %!" #??????????# ## ###+ | | ?########/## *!##########??????????# # # " | | ?# # =]%#????????????????### ### | | ?#""" """ + =/#?????????????#### | | ?#""" """ !#?????????????# # | | ?#"S """ ##????????????# | | ?#""" #????????????# | | ?# "" i" #########????#### =% | | ?# # %"# """T""" #??####### ## | | ?# # # """ """ #??# = # #% | | ?#####"## # iE" m #??# " | | ?????##?# #%ggE%# #??#""" " | | ????????# * hg#m " """ #??#""" # # | | ????????# "%ggg " " " #??#""" # # | | ????#####" bp% "" """ #??# # + #? | | ????# """ # p #??######## # "" + | | ????# "!]/ # ################ # """ ## | | ????#""![ "%" # """ #? | | ????#" !! % # #? | | ????#"" ] # e # ! #? | | ????# " # !%! pE ########? | | ????# !"T "###""## h%########### ##+#####???? | | ????#########?## ## #?????????# # #???? | | ???????????????####gp #?????????# # """" #???? | | ??????????????????# l ########### # """" #???? | | ??????????????????#gg @# / # # """" #???? | | ??????????????????# + # # """" #???? | | ????????########### # """"""" # # #???? | | ????????# # # """"""" " #####+##???? | | ????????#"" # # """"""" # #????? | | ????????#"" """ # # # ##### #????? | | ????????#"T """ + + # #???# #????? | | ????????#"" """ # K# # #???# #????? | | ????????#"" # ########### #?###+###### | | ????????# # #?????????# #?# | | ????????# # #?????????# #?# " | | ????????#####+##### #?????????# #?# ""*% | | ????????# # ########### ### " [ | | ????????# "" + "+ " | | ????????# " # %%# " [ | | ????????# " %"" # "%+|! " *[ | | ????????# """ " # #!!=!| "!% | | ????????# """"" ###############+##+#=%=%=!"=* | | ????????# #????????# #!!!*! !! | | ????????# #????????# ! #![=!== | | ????????###########????????# """ #%!|!! | | ???????????????????????????# """ ![######### | | ???????????????????????????# """ =##???????? | | ???????????????????????????# !! #????????? | | ???????????????????????????# !! *#????????? | +----------------------------------------------------+ Best States ------------- Heat Dissipation 126 Coolant Potential 65 Energy Generation 55 Energy Capacity 700 Matter Stores 800 Matter Capacity 1200 Sight Range 23 Terrain Scan Range 20 Terrain Scan Density 85 Jamming Range 14 Cloak Strength 4 Base Temperature (-) 150 Corruption Block 20 Armor Coverage 3200 Resistance: KI 30 Resistance: EX 25 Resistance: EM 90 Propulsion Shielding 33 Point Defense Rating 240 Phase Shifting 10 Evasion (%) 53 Targeting Accuracy 8 Target Analysis 10 Core Analysis 6 Recoil Reduction 6 Particle Charging 25 Kinecelleration 40 Offensive Hacking 31 Authchip Count 4 Trap Extractor Capacity 6 Item Schematics ----------------- Arm. Huge Wheel | -7/Factory | Scanalyzed Mni. Smartbomb Launcher | -7/Factory | Scanalyzed Adv. Heat Sink | -6/Zion | Archive Imp. Thermal Shield | -6/Zion | Archive Force Field | -6/Zion | Archive Disruptor Cannon | -6/Zion | Archive Fission Core | -6/Zion | Archive Imp. Shock Absorption System | -6/Zion | Archive Energy Well | -6/Zion | Archive Railgun | -6/Zion | Archive Adv. Hardlight Generator | -6/Zion | Archive Angular Momentum Engine | -6/Zion | Archive Variable Charge Gun | -6/Zion | Archive Imp. System Shield | -6/Zion | Archive Imp. Kinecellerator | -6/Zion | Archive Hyp. Gauss Rifle | -6/Zion | Archive Gamma Bomb Array | -5/Factory | Hacked Lyr. Heavy Armor Plating | -5/Factory | Scanalyzed Adv. Cooling System | -5/Factory | Scanalyzed Quantum Capacitor | -3/Research | Scanalyzed Hvy. Proton Cannon | -3/Quarantine | Archive Robot Schematics ------------------ H-55 Commando | -6/Zion | Archive Y-54 Guardian | -6/Zion | Archive T-07 Excavator | -6/Zion | Archive Y-72 Warden | -6/Zion | Archive C-55 Analyst | -3/Quarantine | Archive Fabricated ------------ Arm. Huge Wheel | x2 | -7/Factory | Authchip Mni. Smartbomb Launcher | x1 | -7/Factory Arm. Huge Wheel | x2 | -5/Factory | Authchip Arm. Huge Wheel | x2 | -4/Factory Repaired ---------- Lgt. Treads | 26% | -10/Materials Arm. Huge Wheel | 24% | -6/Factory Centrium Medium Armor Plating | 15% | -3/Research Studied --------- Com. Wheel | -8/Materials | Hacked Wheel | -8/Materials | Hacked Minigun | -8/Materials | Hacked Arm. Wheel | -8/Materials | Hacked Arm. Huge Wheel | -7/Factory | Hacked Great Maul | -7/Factory | Hacked Gatling Laser | -7/Factory | Hacked Hvy. Missile Launcher | -7/Factory | Hacked Plasma Rifle | -5/Factory | Hacked Com. HERF Cannon | -3/Quarantine | Hacked Arm. Heavy Treads | -3/Quarantine | Hacked Quantum Reactor | -3/Quarantine | Hacked Lgt. Antimatter Reactor | -3/Quarantine | Hacked Alien Tech Used ----------------- Dimensional Node Initializer Transdimensional Reconstructor Phase Redirector High-powered Transdimensional Reconstructor Achievements -------------- Bullet Installation Drive-By Hydra I, Locutus Junior Dev Resistances Are Futile Survival Of The Most Covered Treasure Hunter Tune-up Challenges ------------ None Game ------ Seed ReflexBladeDisintegrator Manual? 0 Play Time 09:24:15 Cumulative 415.1 hours Start 2026.02.23 @ 09:27:02 End 2026.02.25 @ 15:52:39 Sessions 23 Manual Loads 0 Difficulty Rogue Special Mode None Game No. 76 Rogue 76 Adventurer 0 Explorer 0 Win Type - Total 14 Types 5/1/5/1/0/0/1/1/0/0 Lore% 79 Gallery% 72 Achievement% 67 Wizard Run 0 Options --------- Layout 1 ASCII 0 Keyboard 1 Movement Vi Keybinds 1 Fullscreen 1 Font 36/Tamsyn Map View 50x40 Zoom Use 0% Tactical HUD 1 Map Filters NONE Filters NONE Steam 1 RUN: 6cfb568e-85c0-48fd-939a-22a083a2d875